Department Family,Entity,Date Paid,Expense Type,Expense Area,Supplier,Transaction Number,Amount (�),Supplier VAT Registration Number
BEIS,Met Office,2023-07-03,06 ACCOMMODATION,CHIEF FINANCIAL OFFICER,ABOVE THE REST COMMERCIAL CLEANING LTD,481288,565,166969348
BEIS,Met Office,2023-07-11,11 SERVICES,MARKETS,ACCELERATION EMARKETING,481631,5301.68,848940776
BEIS,Met Office,2023-07-20,11 SERVICES,MARKETS,ACHILLES INFORMATION LIMITED,482007,900,GB 663 5624 23
BEIS,Met Office,2023-07-18,11 SERVICES,PEOPLE,ACTIVE LEARNING TEAM LTD,481283,2800,-
BEIS,Met Office,2023-07-20,11 SERVICES,CHIEF FINANCIAL OFFICER,ADAM PHONES LTD,481993,85.5,538877093
BEIS,Met Office,2023-07-04,11 SERVICES,MARKETS,ADOPSTAR,481323,1250,115036848
BEIS,Met Office,2023-07-13,11 SERVICES,CHIEF FINANCIAL OFFICER,ADT FIRE AND SECURITY PLC,481658,210.96,413633086
BEIS,Met Office,2023-07-13,11 SERVICES,CHIEF FINANCIAL OFFICER,ADT FIRE AND SECURITY PLC,481660,242,413633086
BEIS,Met Office,2023-07-04,03 STAFF COSTS T&S,SERVICES,AIRPORT CAR RENTALS LTD,481342,320,-
BEIS,Met Office,2023-07-27,11 SERVICES,MARKETS,AIRTO LTD,482099,7270,448873792
BEIS,Met Office,2023-07-06,11 SERVICES,TECHNOLOGY AND CIO,AKAMAI TECHNOLOGIES LTD,481523,4937.28,745091237
BEIS,Met Office,2023-07-06,11 SERVICES,TECHNOLOGY AND CIO,AKAMAI TECHNOLOGIES LTD,481523,25920.75,745091237
BEIS,Met Office,2023-07-04,11 SERVICES,CHIEF FINANCIAL OFFICER,ALLSTAR BUSINESS SOLUTIONS LTD,481335,3559.92,747880191
BEIS,Met Office,2023-07-17,11 SERVICES,CHIEF FINANCIAL OFFICER,ALLSTAR BUSINESS SOLUTIONS LTD,481874,3425.81,747880191
BEIS,Met Office,2023-07-19,11 SERVICES,TECHNOLOGY AND CIO,AMAZON WEB SERVICES EMEA SARL,11088,530.82,GB 283644382
BEIS,Met Office,2023-07-05,11 SERVICES,TECHNOLOGY AND CIO,AMAZON WEB SERVICES EMEA SARL,11118,1787.8,GB 283644382
BEIS,Met Office,2023-07-05,11 SERVICES,TECHNOLOGY AND CIO,AMAZON WEB SERVICES EMEA SARL,11119,267252.31,GB 283644382
BEIS,Met Office,2023-07-11,11 SERVICES,TECHNOLOGY AND CIO,AMAZON WEB SERVICES EMEA SARL,11122,22318.97,GB 283644382
BEIS,Met Office,2023-07-05,06 ACCOMMODATION,CHIEF FINANCIAL OFFICER,ANGLIAN WATER BUSINESS NATIONAL LTD,481336,31.57,51406002
BEIS,Met Office,2023-07-19,11 SERVICES,CHIEF FINANCIAL OFFICER,ANVIL MOBILE LIMITED,481830,126.2,981686175
BEIS,Met Office,2023-07-13,11 SERVICES,CHIEF FINANCIAL OFFICER,APPLE CENTRAL TAXIS,481713,2582.8,449238720
BEIS,Met Office,2023-07-10,11 SERVICES,SERVICES,APPLIED SATELLITE TECHNOLOGY SYSTEMS LTD,481463,773.08,720108683
BEIS,Met Office,2023-07-05,11 SERVICES,SERVICES,APPLIED SATELLITE TECHNOLOGY SYSTEMS LTD,481464,68.46,720108683
BEIS,Met Office,2023-07-06,11 SERVICES,SERVICES,APPLIED SATELLITE TECHNOLOGY SYSTEMS LTD,481465,509.69,720108683
BEIS,Met Office,2023-07-05,11 SERVICES,SERVICES,APPLIED SATELLITE TECHNOLOGY SYSTEMS LTD,481466,2914.67,720108683
BEIS,Met Office,2023-07-10,11 SERVICES,SERVICES,APPLIED SATELLITE TECHNOLOGY SYSTEMS LTD,481467,137.48,720108683
BEIS,Met Office,2023-07-05,11 SERVICES,SERVICES,APPLIED SATELLITE TECHNOLOGY SYSTEMS LTD,481468,144.05,720108683
BEIS,Met Office,2023-07-07,12 INTERNATIONAL,MARKETS,APPLIED SATELLITE TECHNOLOGY SYSTEMS LTD,481469,34.23,720108683
BEIS,Met Office,2023-07-07,11 SERVICES,SERVICES,APPLIED SATELLITE TECHNOLOGY SYSTEMS LTD,481470,7687.27,720108683
BEIS,Met Office,2023-07-05,11 SERVICES,SERVICES,APPLIED SATELLITE TECHNOLOGY SYSTEMS LTD,481471,34.23,720108683
BEIS,Met Office,2023-07-05,11 SERVICES,SERVICES,APPLIED SATELLITE TECHNOLOGY SYSTEMS LTD,481472,34.23,720108683
BEIS,Met Office,2023-07-13,13 MISCELLANEOUS,CHIEF FINANCIAL OFFICER,ARTHUR J. GALLAGHER INSURANCE BROKERS LIMITED,481741,58212,GB484746209
BEIS,Met Office,2023-07-19,03 STAFF COSTS T&S,SERVICES,AVIS BUDGET PAYLESS,24930,-147.78,-
BEIS,Met Office,2023-07-19,03 STAFF COSTS T&S,SERVICES,AVIS BUDGET PAYLESS,24931,147.78,-
BEIS,Met Office,2023-07-11,03 STAFF COSTS T&S,SERVICES,AVIS BUDGET PAYLESS,24951,457.87,-
BEIS,Met Office,2023-07-11,03 STAFF COSTS T&S,SERVICES,AVIS BUDGET PAYLESS,24952,457.87,-
BEIS,Met Office,2023-07-19,13 MISCELLANEOUS,MARKETS,AVIVA INSURANCE UK LIMITED,481858,300,105 437 300
BEIS,Met Office,2023-07-19,13 MISCELLANEOUS,SERVICES,AVIVA INSURANCE UK LIMITED,481858,1000,105 437 300
BEIS,Met Office,2023-07-18,11 SERVICES,CHIEF FINANCIAL OFFICER,BABBLE CLOUD LIMITED,481896,906.44,GB206270049
BEIS,Met Office,2023-07-18,11 SERVICES,PROGRAMMES,BAE SYSTEMS APPLIED INTELLIGENCE LIMITED,481801,728.01,GB641407169
BEIS,Met Office,2023-07-19,11 SERVICES,TECHNOLOGY AND CIO,BAE SYSTEMS APPLIED INTELLIGENCE LIMITED,481803,7256.25,GB641407169
BEIS,Met Office,2023-07-19,11 SERVICES,TECHNOLOGY AND CIO,BAE SYSTEMS APPLIED INTELLIGENCE LIMITED,481804,13695,GB641407169
BEIS,Met Office,2023-07-19,11 SERVICES,TECHNOLOGY AND CIO,BAE SYSTEMS APPLIED INTELLIGENCE LIMITED,481805,9000,GB641407169
BEIS,Met Office,2023-07-19,11 SERVICES,TECHNOLOGY AND CIO,BAE SYSTEMS APPLIED INTELLIGENCE LIMITED,481806,330,GB641407169
BEIS,Met Office,2023-07-19,11 SERVICES,TECHNOLOGY AND CIO,BAE SYSTEMS APPLIED INTELLIGENCE LIMITED,481807,15015,GB641407169
BEIS,Met Office,2023-07-19,11 SERVICES,TECHNOLOGY AND CIO,BAE SYSTEMS APPLIED INTELLIGENCE LIMITED,481808,8100,GB641407169
BEIS,Met Office,2023-07-19,11 SERVICES,TECHNOLOGY AND CIO,BAE SYSTEMS APPLIED INTELLIGENCE LIMITED,481809,13200,GB641407169
BEIS,Met Office,2023-07-19,11 SERVICES,TECHNOLOGY AND CIO,BAE SYSTEMS APPLIED INTELLIGENCE LIMITED,481810,13859.86,GB641407169
BEIS,Met Office,2023-07-19,11 SERVICES,TECHNOLOGY AND CIO,BAE SYSTEMS APPLIED INTELLIGENCE LIMITED,481846,12194,GB641407169
BEIS,Met Office,2023-07-19,11 SERVICES,TECHNOLOGY AND CIO,BAE SYSTEMS APPLIED INTELLIGENCE LIMITED,481847,8442,GB641407169
BEIS,Met Office,2023-07-19,11 SERVICES,TECHNOLOGY AND CIO,BAE SYSTEMS APPLIED INTELLIGENCE LIMITED,481848,4050,GB641407169
BEIS,Met Office,2023-07-19,11 SERVICES,TECHNOLOGY AND CIO,BAE SYSTEMS APPLIED INTELLIGENCE LIMITED,481849,2250,GB641407169
BEIS,Met Office,2023-07-19,11 SERVICES,TECHNOLOGY AND CIO,BAE SYSTEMS APPLIED INTELLIGENCE LIMITED,481850,3630,GB641407169
BEIS,Met Office,2023-07-19,11 SERVICES,TECHNOLOGY AND CIO,BAE SYSTEMS APPLIED INTELLIGENCE LIMITED,481851,1237.5,GB641407169
BEIS,Met Office,2023-07-20,11 SERVICES,TECHNOLOGY AND CIO,BAE SYSTEMS APPLIED INTELLIGENCE LIMITED,481852,4688.84,GB641407169
BEIS,Met Office,2023-07-19,11 SERVICES,TECHNOLOGY AND CIO,BAE SYSTEMS APPLIED INTELLIGENCE LIMITED,481861,11361,GB641407169
BEIS,Met Office,2023-07-19,11 SERVICES,TECHNOLOGY AND CIO,BAE SYSTEMS APPLIED INTELLIGENCE LIMITED,481862,10143.75,GB641407169
BEIS,Met Office,2023-07-19,11 SERVICES,TECHNOLOGY AND CIO,BAE SYSTEMS APPLIED INTELLIGENCE LIMITED,481863,18877.25,GB641407169
BEIS,Met Office,2023-07-19,11 SERVICES,TECHNOLOGY AND CIO,BAE SYSTEMS APPLIED INTELLIGENCE LIMITED,481864,10350,GB641407169
BEIS,Met Office,2023-07-19,11 SERVICES,TECHNOLOGY AND CIO,BAE SYSTEMS APPLIED INTELLIGENCE LIMITED,481875,15840,GB641407169
BEIS,Met Office,2023-07-19,11 SERVICES,TECHNOLOGY AND CIO,BAE SYSTEMS APPLIED INTELLIGENCE LIMITED,481876,12540,GB641407169
BEIS,Met Office,2023-07-19,11 SERVICES,TECHNOLOGY AND CIO,BAE SYSTEMS APPLIED INTELLIGENCE LIMITED,481877,9450,GB641407169
BEIS,Met Office,2023-07-19,11 SERVICES,TECHNOLOGY AND CIO,BAE SYSTEMS APPLIED INTELLIGENCE LIMITED,481878,7033,GB641407169
BEIS,Met Office,2023-07-19,11 SERVICES,TECHNOLOGY AND CIO,BAE SYSTEMS APPLIED INTELLIGENCE LIMITED,481879,2814,GB641407169
BEIS,Met Office,2023-07-19,11 SERVICES,TECHNOLOGY AND CIO,BAE SYSTEMS APPLIED INTELLIGENCE LIMITED,481880,19550,GB641407169
BEIS,Met Office,2023-07-19,11 SERVICES,TECHNOLOGY AND CIO,BAE SYSTEMS APPLIED INTELLIGENCE LIMITED,481881,19698,GB641407169
BEIS,Met Office,2023-07-19,11 SERVICES,TECHNOLOGY AND CIO,BAE SYSTEMS APPLIED INTELLIGENCE LIMITED,481882,4690,GB641407169
BEIS,Met Office,2023-07-19,11 SERVICES,TECHNOLOGY AND CIO,BAE SYSTEMS APPLIED INTELLIGENCE LIMITED,481883,13952.75,GB641407169
BEIS,Met Office,2023-07-18,11 SERVICES,PROGRAMMES,BAE SYSTEMS APPLIED INTELLIGENCE LIMITED,481884,10467,GB641407169
BEIS,Met Office,2023-07-18,11 SERVICES,PROGRAMMES,BAE SYSTEMS APPLIED INTELLIGENCE LIMITED,481885,17445,GB641407169
BEIS,Met Office,2023-07-18,11 SERVICES,PROGRAMMES,BAE SYSTEMS APPLIED INTELLIGENCE LIMITED,481886,9843.75,GB641407169
BEIS,Met Office,2023-07-18,11 SERVICES,PROGRAMMES,BAE SYSTEMS APPLIED INTELLIGENCE LIMITED,481886,17822,GB641407169
BEIS,Met Office,2023-07-18,11 SERVICES,PROGRAMMES,BAE SYSTEMS APPLIED INTELLIGENCE LIMITED,481886,18760,GB641407169
BEIS,Met Office,2023-07-18,11 SERVICES,PROGRAMMES,BAE SYSTEMS APPLIED INTELLIGENCE LIMITED,481886,25586,GB641407169
BEIS,Met Office,2023-07-18,11 SERVICES,PROGRAMMES,BAE SYSTEMS APPLIED INTELLIGENCE LIMITED,481886,17353,GB641407169
BEIS,Met Office,2023-07-18,11 SERVICES,PROGRAMMES,BAE SYSTEMS APPLIED INTELLIGENCE LIMITED,481886,27534,GB641407169
BEIS,Met Office,2023-07-18,11 SERVICES,PROGRAMMES,BAE SYSTEMS APPLIED INTELLIGENCE LIMITED,481886,24568.38,GB641407169
BEIS,Met Office,2023-07-18,11 SERVICES,PROGRAMMES,BAE SYSTEMS APPLIED INTELLIGENCE LIMITED,481886,18291,GB641407169
BEIS,Met Office,2023-07-18,11 SERVICES,PROGRAMMES,BAE SYSTEMS APPLIED INTELLIGENCE LIMITED,481886,21574,GB641407169
BEIS,Met Office,2023-07-18,11 SERVICES,PROGRAMMES,BAE SYSTEMS APPLIED INTELLIGENCE LIMITED,481886,9380,GB641407169
BEIS,Met Office,2023-07-18,11 SERVICES,PROGRAMMES,BAE SYSTEMS APPLIED INTELLIGENCE LIMITED,481886,26749,GB641407169
BEIS,Met Office,2023-07-18,11 SERVICES,PROGRAMMES,BAE SYSTEMS APPLIED INTELLIGENCE LIMITED,481886,19698,GB641407169
BEIS,Met Office,2023-07-18,11 SERVICES,PROGRAMMES,BAE SYSTEMS APPLIED INTELLIGENCE LIMITED,481886,27912,GB641407169
BEIS,Met Office,2023-07-18,11 SERVICES,PROGRAMMES,BAE SYSTEMS APPLIED INTELLIGENCE LIMITED,481887,22160.25,GB641407169
BEIS,Met Office,2023-07-19,11 SERVICES,TECHNOLOGY AND CIO,BAE SYSTEMS APPLIED INTELLIGENCE LIMITED,481888,21574,GB641407169
BEIS,Met Office,2023-07-19,11 SERVICES,TECHNOLOGY AND CIO,BAE SYSTEMS APPLIED INTELLIGENCE LIMITED,481900,17822,GB641407169
BEIS,Met Office,2023-07-19,11 SERVICES,TECHNOLOGY AND CIO,BAE SYSTEMS APPLIED INTELLIGENCE LIMITED,481901,25586,GB641407169
BEIS,Met Office,2023-07-20,11 SERVICES,TECHNOLOGY AND CIO,BAE SYSTEMS APPLIED INTELLIGENCE LIMITED,481934,12870,GB641407169
BEIS,Met Office,2023-07-20,11 SERVICES,TECHNOLOGY AND CIO,BAE SYSTEMS APPLIED INTELLIGENCE LIMITED,481967,1416.6,GB641407169
BEIS,Met Office,2023-07-10,13 MISCELLANEOUS,CHIEF FINANCIAL OFFICER,BANNER GROUP LIMITED,481643,11.77,GB391085740
BEIS,Met Office,2023-07-17,13 MISCELLANEOUS,CHIEF FINANCIAL OFFICER,BANNER GROUP LIMITED,481844,15.49,GB391085740
BEIS,Met Office,2023-07-19,13 MISCELLANEOUS,CHIEF FINANCIAL OFFICER,BANNER GROUP LIMITED,481892,29.13,GB391085740
BEIS,Met Office,2023-07-19,13 MISCELLANEOUS,CHIEF FINANCIAL OFFICER,BANNER GROUP LIMITED,481893,217.36,GB391085740
BEIS,Met Office,2023-07-26,13 MISCELLANEOUS,CHIEF FINANCIAL OFFICER,BANNER GROUP LIMITED,482048,91.52,GB391085740
BEIS,Met Office,2023-07-03,06 ACCOMMODATION,CHIEF FINANCIAL OFFICER,Belfast International Airport Ltd,481279,296.25,617777601
BEIS,Met Office,2023-07-04,06 ACCOMMODATION,CHIEF FINANCIAL OFFICER,Belfast International Airport Ltd,481320,24491.3,617777601
BEIS,Met Office,2023-07-10,11 SERVICES,SERVICES,BENTLEY TELECOM LTD (was Bentley Walker),481591,787.5,107995930
BEIS,Met Office,2023-07-19,11 SERVICES,SERVICES,BENTLEY TELECOM LTD (was Bentley Walker),481891,87.5,107995930
BEIS,Met Office,2023-07-07,06 ACCOMMODATION,CHIEF FINANCIAL OFFICER,BIDVEST NOONAN UK LTD,481539,191.01,GB847176988
BEIS,Met Office,2023-07-19,06 ACCOMMODATION,CHIEF FINANCIAL OFFICER,BIDVEST NOONAN UK LTD,481859,1,GB847176988
BEIS,Met Office,2023-07-19,06 ACCOMMODATION,CHIEF FINANCIAL OFFICER,BIDVEST NOONAN UK LTD,481859,500.58,GB847176988
BEIS,Met Office,2023-07-19,06 ACCOMMODATION,CHIEF FINANCIAL OFFICER,BIDVEST NOONAN UK LTD,481860,1110.97,GB847176988
BEIS,Met Office,2023-07-19,06 ACCOMMODATION,CHIEF FINANCIAL OFFICER,BIDVEST NOONAN UK LTD,481860,1,GB847176988
BEIS,Met Office,2023-07-13,06 ACCOMMODATION,CHIEF FINANCIAL OFFICER,Biffa Waste Services Ltd,481662,142,537911627
BEIS,Met Office,2023-07-19,06 ACCOMMODATION,CHIEF FINANCIAL OFFICER,Biffa Waste Services Ltd,481870,302,537911627
BEIS,Met Office,2023-07-13,11 SERVICES,PROGRAMMES,BJSS LIMITED,481632,25937.5,613295452
BEIS,Met Office,2023-07-11,11 SERVICES,TECHNOLOGY AND CIO,BJSS LIMITED,481633,7436,613295452
BEIS,Met Office,2023-07-11,11 SERVICES,TECHNOLOGY AND CIO,BJSS LIMITED,481634,91786.5,613295452
BEIS,Met Office,2023-07-13,11 SERVICES,MARKETS,BJSS LIMITED,481636,1031.25,613295452
BEIS,Met Office,2023-07-11,11 SERVICES,PROGRAMMES,BJSS LIMITED,481637,42062.5,613295452
BEIS,Met Office,2023-07-11,11 SERVICES,PROGRAMMES,BJSS LIMITED,481652,89673.75,613295452
BEIS,Met Office,2023-07-14,11 SERVICES,PROGRAMMES,BJSS LIMITED,481655,43275,613295452
BEIS,Met Office,2023-07-13,11 SERVICES,PROGRAMMES,BJSS LIMITED,481656,100700,613295452
BEIS,Met Office,2023-07-14,11 SERVICES,PROGRAMMES,BJSS LIMITED,481657,10300,613295452
BEIS,Met Office,2023-07-05,11 SERVICES,MARKETS,BLUE ORCHID (TOWER SUITES) LIMITED,481443,3866.67,-
BEIS,Met Office,2023-07-05,11 SERVICES,MARKETS,BLUE ORCHID (TOWER SUITES) LIMITED,481444,3618.33,-
BEIS,Met Office,2023-07-13,11 SERVICES,SERVICES,Boc Ltd,481330,47775.3,226556555
BEIS,Met Office,2023-07-13,08 SOFTWARE LICENCES,TECHNOLOGY AND CIO,BOXXE,481702,6710.4,734245248
BEIS,Met Office,2023-07-06,13 MISCELLANEOUS,PEOPLE,BROADBEAN TECHNOLOGY LTD,481460,593.01,GB184088778
BEIS,Met Office,2023-07-17,13 MISCELLANEOUS,PEOPLE,BROADBEAN TECHNOLOGY LTD,481461,424.71,GB184088778
BEIS,Met Office,2023-07-19,11 SERVICES,CHIEF FINANCIAL OFFICER,BT GLOBAL SERVICES,480963,773.85,245719348
BEIS,Met Office,2023-07-10,11 SERVICES,CHIEF FINANCIAL OFFICER,BT plc,481410,7414.35,245719348
BEIS,Met Office,2023-07-27,11 SERVICES,CHIEF FINANCIAL OFFICER,BT plc,482083,7571.29,245719348
BEIS,Met Office,2023-07-17,06 ACCOMMODATION,CHIEF FINANCIAL OFFICER,BUSINESS STREAM,481750,261.01,945850885
BEIS,Met Office,2023-07-13,06 ACCOMMODATION,CHIEF FINANCIAL OFFICER,BUSINESS SUPPORT CENTRE LTD,481700,61.31,927365208
BEIS,Met Office,2023-07-24,11 SERVICES,SERVICES,BUSINESS SUPPORT CENTRE LTD,482045,115.5,927365208
BEIS,Met Office,2023-07-19,11 SERVICES,CHIEF FINANCIAL OFFICER,CABINET OFFICE - COF LEAD ACCOUNT,480931,-21437,-
BEIS,Met Office,2023-07-19,11 SERVICES,CHIEF FINANCIAL OFFICER,CABINET OFFICE - COF LEAD ACCOUNT,481868,36000,-
BEIS,Met Office,2023-07-19,11 SERVICES,CHIEF FINANCIAL OFFICER,CABINET OFFICE - COF LEAD ACCOUNT,481929,64520,-
BEIS,Met Office,2023-07-07,13 MISCELLANEOUS,CHIEF FINANCIAL OFFICER,CANON UK LTD,481541,0.07,523797128
BEIS,Met Office,2023-07-07,13 MISCELLANEOUS,CHIEF FINANCIAL OFFICER,CANON UK LTD,481542,2989.5,523797128
BEIS,Met Office,2023-07-07,13 MISCELLANEOUS,CHIEF FINANCIAL OFFICER,CANON UK LTD,481571,609.02,523797128
BEIS,Met Office,2023-07-07,13 MISCELLANEOUS,CHIEF FINANCIAL OFFICER,CANON UK LTD,481572,49.62,523797128
BEIS,Met Office,2023-07-07,13 MISCELLANEOUS,CHIEF FINANCIAL OFFICER,CANON UK LTD,481573,663.4,523797128
BEIS,Met Office,2023-07-07,13 MISCELLANEOUS,CHIEF FINANCIAL OFFICER,CANON UK LTD,481574,26.34,523797128
BEIS,Met Office,2023-07-07,13 MISCELLANEOUS,CHIEF FINANCIAL OFFICER,CANON UK LTD,481575,693.94,523797128
BEIS,Met Office,2023-07-10,13 MISCELLANEOUS,CHIEF FINANCIAL OFFICER,CANON UK LTD,481593,0.27,523797128
BEIS,Met Office,2023-07-13,13 MISCELLANEOUS,CHIEF FINANCIAL OFFICER,CANON UK LTD,481647,493.5,523797128
BEIS,Met Office,2023-07-17,13 MISCELLANEOUS,CHIEF FINANCIAL OFFICER,CANON UK LTD,481748,1,523797128
BEIS,Met Office,2023-07-17,13 MISCELLANEOUS,CHIEF FINANCIAL OFFICER,CANON UK LTD,481748,2149.38,523797128
BEIS,Met Office,2023-07-17,13 MISCELLANEOUS,CHIEF FINANCIAL OFFICER,CANON UK LTD,481757,1,523797128
BEIS,Met Office,2023-07-17,13 MISCELLANEOUS,CHIEF FINANCIAL OFFICER,CANON UK LTD,481757,162.42,523797128
BEIS,Met Office,2023-07-17,13 MISCELLANEOUS,CHIEF FINANCIAL OFFICER,CANON UK LTD,481811,1940.32,523797128
BEIS,Met Office,2023-07-20,13 MISCELLANEOUS,CHIEF FINANCIAL OFFICER,CANON UK LTD,481964,0.01,523797128
BEIS,Met Office,2023-07-20,13 MISCELLANEOUS,CHIEF FINANCIAL OFFICER,CANON UK LTD,481964,0.74,523797128
BEIS,Met Office,2023-07-04,06 ACCOMMODATION,CHIEF FINANCIAL OFFICER,CARDIFF EXECUTIVE CENTRE LTD,481322,2370,864497378
BEIS,Met Office,2023-07-04,06 ACCOMMODATION,PROGRAMMES,CARDIFF EXECUTIVE CENTRE LTD,481322,100,864497378
BEIS,Met Office,2023-07-05,13 MISCELLANEOUS,CHIEF FINANCIAL OFFICER,CARDIFF EXECUTIVE CENTRE LTD,481404,2.16,864497378
BEIS,Met Office,2023-07-20,06 ACCOMMODATION,CHIEF FINANCIAL OFFICER,CARDIFF EXECUTIVE CENTRE LTD,481955,2470,864497378
BEIS,Met Office,2023-07-05,08 SOFTWARE LICENCES,PEOPLE,CATALYST IT,481347,2270.82,978169262
BEIS,Met Office,2023-07-05,08 SOFTWARE LICENCES,PEOPLE,CATALYST IT,481348,840,978169262
BEIS,Met Office,2023-07-13,FIXTURE & FITTINGS,CHIEF FINANCIAL OFFICER,CBRE MANAGED SERVICES LTD,481739,7337.42,853936883
BEIS,Met Office,2023-07-27,06 ACCOMMODATION,CHIEF FINANCIAL OFFICER,CBRE MANAGED SERVICES LTD,482088,22054.37,853936883
BEIS,Met Office,2023-07-27,06 ACCOMMODATION,CHIEF FINANCIAL OFFICER,CBRE MANAGED SERVICES LTD,482088,1,853936883
BEIS,Met Office,2023-07-27,06 ACCOMMODATION,CHIEF FINANCIAL OFFICER,CBRE MANAGED SERVICES LTD,482089,1,853936883
BEIS,Met Office,2023-07-27,06 ACCOMMODATION,CHIEF FINANCIAL OFFICER,CBRE MANAGED SERVICES LTD,482089,27660.84,853936883
BEIS,Met Office,2023-07-07,10 EQUIPMENT MAINTENANCE,TECHNOLOGY AND CIO,CDW LTD,481406,25489.12,902194939
BEIS,Met Office,2023-07-19,08 SOFTWARE LICENCES,CHIEF FINANCIAL OFFICER,CEMAR,481871,850,915042161
BEIS,Met Office,2023-07-06,11 SERVICES,PROGRAMMES,Cgi It Uk Limited,481324,6634,232615194
BEIS,Met Office,2023-07-06,11 SERVICES,PROGRAMMES,Cgi It Uk Limited,481324,29834,232615194
BEIS,Met Office,2023-07-06,11 SERVICES,PROGRAMMES,Cgi It Uk Limited,481325,5399,232615194
BEIS,Met Office,2023-07-06,11 SERVICES,PROGRAMMES,Cgi It Uk Limited,481325,22834,232615194
BEIS,Met Office,2023-07-06,11 SERVICES,PROGRAMMES,Cgi It Uk Limited,481326,64215,232615194
BEIS,Met Office,2023-07-06,11 SERVICES,PROGRAMMES,Cgi It Uk Limited,481327,9049,232615194
BEIS,Met Office,2023-07-06,11 SERVICES,PROGRAMMES,Cgi It Uk Limited,481327,31984,232615194
BEIS,Met Office,2023-07-04,03 STAFF COSTS T&S,SERVICES,CHARLIE'S TRAVEL LTD,481191,371.14,783848277
BEIS,Met Office,2023-07-03,11 SERVICES,MARKETS,CHURCH HOUSE CONFERENCE CENTRE LTD,481261,2043.25,563068242
BEIS,Met Office,2023-07-18,11 SERVICES,PEOPLE,CIVICA UK LIMITED,481048,1499,391171065
BEIS,Met Office,2023-07-05,11 SERVICES,PEOPLE,CIVICA UK LIMITED,481168,-1499,391171065
BEIS,Met Office,2023-07-05,08 SOFTWARE LICENCES,SERVICES,CIVICA UK LIMITED,481311,11381.25,391171065
BEIS,Met Office,2023-07-06,11 SERVICES,PEOPLE,CIVICA UK LIMITED,481519,7503.5,391171065
BEIS,Met Office,2023-07-21,07 EQUIPMENT,SERVICES,CLARKE LANE ENGINEERING LTD,482029,109.74,412068487
BEIS,Met Office,2023-07-21,07 EQUIPMENT,SERVICES,CLARKE LANE ENGINEERING LTD,482029,15,412068487
BEIS,Met Office,2023-07-21,07 EQUIPMENT,SERVICES,CLARKE LANE ENGINEERING LTD,482029,43,412068487
BEIS,Met Office,2023-07-13,11 SERVICES,TECHNOLOGY AND CIO,CLOUDREACH EUROPE LIMITED,481653,5150,978187168
BEIS,Met Office,2023-07-11,11 SERVICES,SERVICES,CLOUDREACH EUROPE LIMITED,481654,7300,978187168
BEIS,Met Office,2023-07-13,11 SERVICES,TECHNOLOGY AND CIO,CLOUDREACH EUROPE LIMITED,481758,3324.8,978187168
BEIS,Met Office,2023-07-13,11 SERVICES,CHIEF FINANCIAL OFFICER,COMMERCIAL TRANSFER LTD,481752,810,891436990
BEIS,Met Office,2023-07-03,10 EQUIPMENT MAINTENANCE,TECHNOLOGY AND CIO,COMPUTACENTER (UK) LTD,481297,3370.6,490334648
BEIS,Met Office,2023-07-10,07 EQUIPMENT,TECHNOLOGY AND CIO,COMPUTACENTER (UK) LTD,481641,662.2,490334648
BEIS,Met Office,2023-07-10,07 EQUIPMENT,TECHNOLOGY AND CIO,COMPUTACENTER (UK) LTD,481642,4101.2,490334648
BEIS,Met Office,2023-07-13,11 SERVICES,SERVICES,COMPUTACENTER (UK) LTD,481703,1179.72,490334648
BEIS,Met Office,2023-07-14,08 SOFTWARE LICENCES,TECHNOLOGY AND CIO,COMPUTACENTER (UK) LTD,481736,8140.6,490334648
BEIS,Met Office,2023-07-26,11 SERVICES,TECHNOLOGY AND CIO,COMPUTACENTER (UK) LTD,482058,388.89,490334648
BEIS,Met Office,2023-07-28,10 EQUIPMENT MAINTENANCE,TECHNOLOGY AND CIO,COMPUTACENTER (UK) LTD,482168,3202.07,490334648
BEIS,Met Office,2023-07-31,07 EQUIPMENT,TECHNOLOGY AND CIO,COMPUTACENTER (UK) LTD,482173,3820.97,490334648
BEIS,Met Office,2023-07-26,11 SERVICES,PEOPLE,CREATURE MEDIA LTD,482036,3250,128411336
BEIS,Met Office,2023-07-05,06 ACCOMMODATION,CHIEF FINANCIAL OFFICER,DACORUM BOROUGH COUNCIL,481394,8977.15,-
BEIS,Met Office,2023-07-18,03 STAFF COSTS T&S,SERVICES,DBS FINANCE RECEIPTS CTS,481594,6424,888805068
BEIS,Met Office,2023-07-11,13 MISCELLANEOUS,SERVICES,DBS FINANCE RECEIPTS CTS,481639,30,888805068
BEIS,Met Office,2023-07-19,11 SERVICES,PEOPLE,DECKHIVE LIMITED,479898,875,-
BEIS,Met Office,2023-07-11,13 MISCELLANEOUS,CHIEF FINANCIAL OFFICER,DEMSTAR BUSINESS SOLUTIONS LTD,24937,151.34,10156145J
BEIS,Met Office,2023-07-11,13 MISCELLANEOUS,CHIEF FINANCIAL OFFICER,DEMSTAR BUSINESS SOLUTIONS LTD,25017,104.37,10156145J
BEIS,Met Office,2023-07-20,11 SERVICES,PROGRAMMES,Dstl,482000,1012.95,888805166
BEIS,Met Office,2023-07-20,11 SERVICES,PROGRAMMES,Dstl,482001,345.8,888805166
BEIS,Met Office,2023-07-20,11 SERVICES,PROGRAMMES,Dstl,482002,2828.45,888805166
BEIS,Met Office,2023-07-20,11 SERVICES,PROGRAMMES,Dstl,482003,969.8,888805166
BEIS,Met Office,2023-07-04,13 MISCELLANEOUS,CHIEF FINANCIAL OFFICER,DWYFOR COFFEE COMPANY LTD,481070,-32.18,559811116
BEIS,Met Office,2023-07-04,13 MISCELLANEOUS,CHIEF FINANCIAL OFFICER,DWYFOR COFFEE COMPANY LTD,481079,25,559811116
BEIS,Met Office,2023-07-04,13 MISCELLANEOUS,CHIEF FINANCIAL OFFICER,DWYFOR COFFEE COMPANY LTD,481368,32.6,559811116
BEIS,Met Office,2023-07-17,11 SERVICES,PEOPLE,ECA INTERNATIONAL,481816,8710.5,238549825
BEIS,Met Office,2023-07-11,11 SERVICES,MARKETS,ECMWF,24956,2565.11,NOTVATREG
BEIS,Met Office,2023-07-11,11 SERVICES,MARKETS,ECMWF,24957,958.95,NOTVATREG
BEIS,Met Office,2023-07-11,11 SERVICES,MARKETS,ECMWF,24958,1523.04,NOTVATREG
BEIS,Met Office,2023-07-11,11 SERVICES,MARKETS,ECMWF,24959,6357,NOTVATREG
BEIS,Met Office,2023-07-11,11 SERVICES,MARKETS,ECMWF,24960,32152.09,NOTVATREG
BEIS,Met Office,2023-07-11,11 SERVICES,MARKETS,ECMWF,24961,10687.96,NOTVATREG
BEIS,Met Office,2023-07-11,11 SERVICES,MARKETS,ECMWF,24962,1282.56,NOTVATREG
BEIS,Met Office,2023-07-11,11 SERVICES,MARKETS,ECMWF,24963,2152.03,NOTVATREG
BEIS,Met Office,2023-07-11,11 SERVICES,MARKETS,ECMWF,24964,165.14,NOTVATREG
BEIS,Met Office,2023-07-11,11 SERVICES,MARKETS,ECMWF,24965,35761.92,NOTVATREG
BEIS,Met Office,2023-07-11,11 SERVICES,MARKETS,ECMWF,24966,342.21,NOTVATREG
BEIS,Met Office,2023-07-11,11 SERVICES,MARKETS,ECMWF,24967,591.75,NOTVATREG
BEIS,Met Office,2023-07-11,11 SERVICES,MARKETS,ECMWF,24968,1321.33,NOTVATREG
BEIS,Met Office,2023-07-11,11 SERVICES,MARKETS,ECMWF,24969,34479.37,NOTVATREG
BEIS,Met Office,2023-07-11,11 SERVICES,MARKETS,ECMWF,24970,4313.09,NOTVATREG
BEIS,Met Office,2023-07-11,11 SERVICES,MARKETS,ECMWF,24971,1605.33,NOTVATREG
BEIS,Met Office,2023-07-11,11 SERVICES,MARKETS,ECMWF,24972,35761.95,NOTVATREG
BEIS,Met Office,2023-07-11,11 SERVICES,MARKETS,ECMWF,24973,35509.22,NOTVATREG
BEIS,Met Office,2023-07-11,11 SERVICES,MARKETS,ECMWF,24974,4086.24,NOTVATREG
BEIS,Met Office,2023-07-11,11 SERVICES,MARKETS,ECMWF,24975,20799.55,NOTVATREG
BEIS,Met Office,2023-07-11,11 SERVICES,MARKETS,ECMWF,24976,1636.55,NOTVATREG
BEIS,Met Office,2023-07-11,11 SERVICES,MARKETS,ECMWF,24977,35509.22,NOTVATREG
BEIS,Met Office,2023-07-11,11 SERVICES,MARKETS,ECMWF,24978,990.03,NOTVATREG
BEIS,Met Office,2023-07-11,11 SERVICES,MARKETS,ECMWF,24979,35761.92,NOTVATREG
BEIS,Met Office,2023-07-11,11 SERVICES,MARKETS,ECMWF,24980,362.76,NOTVATREG
BEIS,Met Office,2023-07-11,11 SERVICES,MARKETS,ECMWF,24984,4313.09,NOTVATREG
BEIS,Met Office,2023-07-11,11 SERVICES,MARKETS,ECMWF,24985,7991.39,NOTVATREG
BEIS,Met Office,2023-07-11,11 SERVICES,MARKETS,ECMWF,24986,8063.05,NOTVATREG
BEIS,Met Office,2023-07-11,11 SERVICES,MARKETS,ECMWF,24987,1992.88,NOTVATREG
BEIS,Met Office,2023-07-11,11 SERVICES,MARKETS,ECMWF,24988,35761.92,NOTVATREG
BEIS,Met Office,2023-07-11,11 SERVICES,MARKETS,ECMWF,24989,5545.88,NOTVATREG
BEIS,Met Office,2023-07-11,11 SERVICES,MARKETS,ECMWF,24990,5731.21,NOTVATREG
BEIS,Met Office,2023-07-11,11 SERVICES,MARKETS,ECMWF,24991,3891.05,NOTVATREG
BEIS,Met Office,2023-07-11,11 SERVICES,MARKETS,ECMWF,24992,1555.63,NOTVATREG
BEIS,Met Office,2023-07-11,11 SERVICES,MARKETS,ECMWF,24993,21589.68,NOTVATREG
BEIS,Met Office,2023-07-11,11 SERVICES,MARKETS,ECMWF,24994,47988.95,NOTVATREG
BEIS,Met Office,2023-07-11,11 SERVICES,MARKETS,ECMWF,24995,4878.39,NOTVATREG
BEIS,Met Office,2023-07-11,11 SERVICES,MARKETS,ECMWF,24996,35761.92,NOTVATREG
BEIS,Met Office,2023-07-11,11 SERVICES,MARKETS,ECMWF,24997,47988.95,NOTVATREG
BEIS,Met Office,2023-07-11,11 SERVICES,MARKETS,ECMWF,24998,21589.68,NOTVATREG
BEIS,Met Office,2023-07-11,11 SERVICES,MARKETS,ECMWF,24999,11789.65,NOTVATREG
BEIS,Met Office,2023-07-11,11 SERVICES,MARKETS,ECMWF,25000,1318.04,NOTVATREG
BEIS,Met Office,2023-07-11,11 SERVICES,MARKETS,ECMWF,25001,6100.6,NOTVATREG
BEIS,Met Office,2023-07-11,11 SERVICES,MARKETS,ECMWF,25002,819.77,NOTVATREG
BEIS,Met Office,2023-07-11,11 SERVICES,MARKETS,ECMWF,25003,20146.45,NOTVATREG
BEIS,Met Office,2023-07-11,11 SERVICES,MARKETS,ECMWF,25004,19057.46,NOTVATREG
BEIS,Met Office,2023-07-11,11 SERVICES,MARKETS,ECMWF,25005,165.14,NOTVATREG
BEIS,Met Office,2023-07-11,11 SERVICES,MARKETS,ECMWF,25006,35761.92,NOTVATREG
BEIS,Met Office,2023-07-11,11 SERVICES,MARKETS,ECMWF,25007,362.76,NOTVATREG
BEIS,Met Office,2023-07-11,11 SERVICES,MARKETS,ECMWF,25008,960.66,NOTVATREG
BEIS,Met Office,2023-07-11,11 SERVICES,MARKETS,ECMWF,25009,1535.89,NOTVATREG
BEIS,Met Office,2023-07-11,11 SERVICES,MARKETS,ECMWF,25010,53546.69,NOTVATREG
BEIS,Met Office,2023-07-11,11 SERVICES,MARKETS,ECMWF,25011,1312.75,NOTVATREG
BEIS,Met Office,2023-07-11,11 SERVICES,MARKETS,ECMWF,25012,461.39,NOTVATREG
BEIS,Met Office,2023-07-11,11 SERVICES,MARKETS,ECMWF,25013,591.75,NOTVATREG
BEIS,Met Office,2023-07-11,11 SERVICES,MARKETS,ECMWF,25014,1321.33,NOTVATREG
BEIS,Met Office,2023-07-11,11 SERVICES,MARKETS,ECMWF,25015,1015.36,NOTVATREG
BEIS,Met Office,2023-07-11,11 SERVICES,MARKETS,ECMWF,25016,1015.36,NOTVATREG
BEIS,Met Office,2023-07-11,11 SERVICES,MARKETS,ECMWF,25018,449.99,NOTVATREG
BEIS,Met Office,2023-07-11,11 SERVICES,MARKETS,ECMWF,25019,34479.37,NOTVATREG
BEIS,Met Office,2023-07-11,11 SERVICES,MARKETS,ECMWF,25020,343.94,NOTVATREG
BEIS,Met Office,2023-07-11,11 SERVICES,MARKETS,ECMWF,25021,333.36,NOTVATREG
BEIS,Met Office,2023-07-11,11 SERVICES,MARKETS,ECMWF,25022,34479.37,NOTVATREG
BEIS,Met Office,2023-07-11,11 SERVICES,MARKETS,ECMWF,25023,1499.17,NOTVATREG
BEIS,Met Office,2023-07-11,11 SERVICES,MARKETS,ECMWF,25024,30054.55,NOTVATREG
BEIS,Met Office,2023-07-11,11 SERVICES,MARKETS,ECMWF,25025,35761.92,NOTVATREG
BEIS,Met Office,2023-07-11,11 SERVICES,MARKETS,ECMWF,25026,2152.03,NOTVATREG
BEIS,Met Office,2023-07-11,11 SERVICES,MARKETS,ECMWF,25027,1605.33,NOTVATREG
BEIS,Met Office,2023-07-11,11 SERVICES,MARKETS,ECMWF,25028,3.68,NOTVATREG
BEIS,Met Office,2023-07-11,11 SERVICES,MARKETS,ECMWF,25029,35761.92,NOTVATREG
BEIS,Met Office,2023-07-11,11 SERVICES,MARKETS,ECMWF,25030,1638.19,NOTVATREG
BEIS,Met Office,2023-07-11,11 SERVICES,MARKETS,ECMWF,25031,35711.38,NOTVATREG
BEIS,Met Office,2023-07-11,11 SERVICES,MARKETS,ECMWF,25032,990.03,NOTVATREG
BEIS,Met Office,2023-07-11,11 SERVICES,MARKETS,ECMWF,25033,35761.92,NOTVATREG
BEIS,Met Office,2023-07-11,11 SERVICES,MARKETS,ECMWF,25034,35711.38,NOTVATREG
BEIS,Met Office,2023-07-11,11 SERVICES,MARKETS,ECMWF,25035,4087.88,NOTVATREG
BEIS,Met Office,2023-07-11,11 SERVICES,MARKETS,ECMWF,25036,20799.55,NOTVATREG
BEIS,Met Office,2023-07-27,13 MISCELLANEOUS,CHIEF FINANCIAL OFFICER,EDEN SPRINGS UK LTD,482098,922.19,232160411
BEIS,Met Office,2023-07-13,13 MISCELLANEOUS,PEOPLE,EDENRED - CHILDCARE VOUCHERS,481638,9594.5,649 503 520
BEIS,Met Office,2023-07-28,CYCLESCHEME,OTHER,EDENRED EB (SHOPPING VOUCHERS),482152,949.32,649 503 520
BEIS,Met Office,2023-07-06,13 MISCELLANEOUS,PEOPLE,EDENRED I&M (IRS VOUCHERS),481366,36118.2,649 503 520
BEIS,Met Office,2023-07-07,CYCLESCHEME,OTHER,EDENRED UK (CYCLESCHEME),481533,6640.03,649 503 520
BEIS,Met Office,2023-07-10,06 ACCOMMODATION,CHIEF FINANCIAL OFFICER,EDF ENERGY CUSTOMERS PLC,481284,214848.91,523041202
BEIS,Met Office,2023-07-10,06 ACCOMMODATION,CHIEF FINANCIAL OFFICER,EDF ENERGY CUSTOMERS PLC,481285,-207957.59,523041202
BEIS,Met Office,2023-07-10,06 ACCOMMODATION,CHIEF FINANCIAL OFFICER,EDF ENERGY CUSTOMERS PLC,481286,-218074.22,523041202
BEIS,Met Office,2023-07-10,06 ACCOMMODATION,CHIEF FINANCIAL OFFICER,EDF ENERGY CUSTOMERS PLC,481287,205324.32,523041202
BEIS,Met Office,2023-07-10,06 ACCOMMODATION,CHIEF FINANCIAL OFFICER,EDF ENERGY CUSTOMERS PLC,481525,210784.18,523041202
BEIS,Met Office,2023-07-10,06 ACCOMMODATION,CHIEF FINANCIAL OFFICER,EDF ENERGY CUSTOMERS PLC,481526,212919.87,523041202
BEIS,Met Office,2023-07-10,06 ACCOMMODATION,CHIEF FINANCIAL OFFICER,EDF ENERGY CUSTOMERS PLC,481527,592123.71,523041202
BEIS,Met Office,2023-07-24,06 ACCOMMODATION,CHIEF FINANCIAL OFFICER,EDF ENERGY CUSTOMERS PLC,481965,43591.7,523041202
BEIS,Met Office,2023-07-07,STOCK,SERVICES,EDMUNDSON ELECTRICAL LTD,481474,0,338246841
BEIS,Met Office,2023-07-07,TRADE CREDITORS,SERVICES,EDMUNDSON ELECTRICAL LTD,481474,8972.8,338246841
BEIS,Met Office,2023-07-03,06 ACCOMMODATION,CHIEF FINANCIAL OFFICER,REDACTED � PERSONAL DATA,481295,500,-
BEIS,Met Office,2023-07-26,11 SERVICES,CHIEF FINANCIAL OFFICER,EIR,25135,58.11,4736919B
BEIS,Met Office,2023-07-04,03 STAFF COSTS T&S,CHIEF FINANCIAL OFFICER,ENTERPRISE RENT A CAR UK LTD,481329,3704.7,215557314
BEIS,Met Office,2023-07-06,03 STAFF COSTS T&S,CHIEF FINANCIAL OFFICER,ENTERPRISE RENT A CAR UK LTD,481536,54.4,215557314
BEIS,Met Office,2023-07-10,03 STAFF COSTS T&S,CHIEF FINANCIAL OFFICER,ENTERPRISE RENT A CAR UK LTD,481644,1188.12,215557314
BEIS,Met Office,2023-07-10,03 STAFF COSTS T&S,CHIEF FINANCIAL OFFICER,ENTERPRISE RENT A CAR UK LTD,481645,0,215557314
BEIS,Met Office,2023-07-10,03 STAFF COSTS T&S,CHIEF FINANCIAL OFFICER,ENTERPRISE RENT A CAR UK LTD,481645,3450.07,215557314
BEIS,Met Office,2023-07-17,03 STAFF COSTS T&S,CHIEF FINANCIAL OFFICER,ENTERPRISE RENT A CAR UK LTD,481873,2804.71,215557314
BEIS,Met Office,2023-07-25,03 STAFF COSTS T&S,CHIEF FINANCIAL OFFICER,ENTERPRISE RENT A CAR UK LTD,482047,0,215557314
BEIS,Met Office,2023-07-25,03 STAFF COSTS T&S,CHIEF FINANCIAL OFFICER,ENTERPRISE RENT A CAR UK LTD,482047,3059.74,215557314
BEIS,Met Office,2023-07-05,11 SERVICES,SCIENCE,Esri (Uk) Ltd,481353,4040.13,787430791
BEIS,Met Office,2023-07-13,11 SERVICES,CHIEF FINANCIAL OFFICER,EXPONENTIAL-E,477365,239.26,GB798572653
BEIS,Met Office,2023-07-13,11 SERVICES,CHIEF FINANCIAL OFFICER,EXPONENTIAL-E,479738,187.25,GB798572653
BEIS,Met Office,2023-07-07,11 SERVICES,CHIEF FINANCIAL OFFICER,EXPONENTIAL-E,481492,2281.82,GB798572653
BEIS,Met Office,2023-07-13,11 SERVICES,CHIEF FINANCIAL OFFICER,EXPONENTIAL-E,481749,464.32,GB798572653
BEIS,Met Office,2023-07-18,03 STAFF COSTS T&S,SERVICES,FALKLAND ISLAND COMPANY LTD,481812,700,N/A
BEIS,Met Office,2023-07-18,03 STAFF COSTS T&S,SERVICES,FALKLAND ISLAND COMPANY LTD,481813,700,N/A
BEIS,Met Office,2023-07-18,03 STAFF COSTS T&S,SERVICES,FALKLAND ISLAND COMPANY LTD,481814,700,N/A
BEIS,Met Office,2023-07-07,11 SERVICES,CHIEF FINANCIAL OFFICER,FILTONGATE LIMITED,481531,2975,562 3530 56
BEIS,Met Office,2023-07-31,FIXTURE & FITTINGS,CHIEF FINANCIAL OFFICER,FMS INTERIOR SERVICES LTD,482135,251.07,922056940
BEIS,Met Office,2023-07-31,FIXTURE & FITTINGS,CHIEF FINANCIAL OFFICER,FMS INTERIOR SERVICES LTD,482135,381,922056940
BEIS,Met Office,2023-07-31,FIXTURE & FITTINGS,CHIEF FINANCIAL OFFICER,FMS INTERIOR SERVICES LTD,482135,144,922056940
BEIS,Met Office,2023-07-31,FIXTURE & FITTINGS,CHIEF FINANCIAL OFFICER,FMS INTERIOR SERVICES LTD,482135,133.25,922056940
BEIS,Met Office,2023-07-31,FIXTURE & FITTINGS,CHIEF FINANCIAL OFFICER,FMS INTERIOR SERVICES LTD,482135,104,922056940
BEIS,Met Office,2023-07-31,FIXTURE & FITTINGS,CHIEF FINANCIAL OFFICER,FMS INTERIOR SERVICES LTD,482135,576,922056940
BEIS,Met Office,2023-07-31,FIXTURE & FITTINGS,CHIEF FINANCIAL OFFICER,FMS INTERIOR SERVICES LTD,482135,2547.68,922056940
BEIS,Met Office,2023-07-31,FIXTURE & FITTINGS,CHIEF FINANCIAL OFFICER,FMS INTERIOR SERVICES LTD,482135,954,922056940
BEIS,Met Office,2023-07-31,FIXTURE & FITTINGS,CHIEF FINANCIAL OFFICER,FMS INTERIOR SERVICES LTD,482135,306,922056940
BEIS,Met Office,2023-07-31,FIXTURE & FITTINGS,CHIEF FINANCIAL OFFICER,FMS INTERIOR SERVICES LTD,482135,344,922056940
BEIS,Met Office,2023-07-31,FIXTURE & FITTINGS,CHIEF FINANCIAL OFFICER,FMS INTERIOR SERVICES LTD,482135,456,922056940
BEIS,Met Office,2023-07-31,FIXTURE & FITTINGS,CHIEF FINANCIAL OFFICER,FMS INTERIOR SERVICES LTD,482135,67.75,922056940
BEIS,Met Office,2023-07-31,FIXTURE & FITTINGS,CHIEF FINANCIAL OFFICER,FMS INTERIOR SERVICES LTD,482135,75,922056940
BEIS,Met Office,2023-07-31,FIXTURE & FITTINGS,CHIEF FINANCIAL OFFICER,FMS INTERIOR SERVICES LTD,482135,124,922056940
BEIS,Met Office,2023-07-31,FIXTURE & FITTINGS,CHIEF FINANCIAL OFFICER,FMS INTERIOR SERVICES LTD,482135,179.92,922056940
BEIS,Met Office,2023-07-31,FIXTURE & FITTINGS,SERVICES,FMS INTERIOR SERVICES LTD,482136,25,922056940
BEIS,Met Office,2023-07-26,PLANT AND EQUIPMENT,SERVICES,FORD MOTOR COMPANY,481185,23724.03,246425757
BEIS,Met Office,2023-07-26,PLANT AND EQUIPMENT,SERVICES,FORD MOTOR COMPANY,481185,55,246425757
BEIS,Met Office,2023-07-26,PLANT AND EQUIPMENT,SERVICES,FORD MOTOR COMPANY,481185,320,246425757
BEIS,Met Office,2023-07-14,PLANT AND EQUIPMENT,SERVICES,FORD MOTOR COMPANY,481802,23724.03,246425757
BEIS,Met Office,2023-07-14,PLANT AND EQUIPMENT,SERVICES,FORD MOTOR COMPANY,481802,55,246425757
BEIS,Met Office,2023-07-14,PLANT AND EQUIPMENT,SERVICES,FORD MOTOR COMPANY,481802,320,246425757
BEIS,Met Office,2023-07-14,11 SERVICES,CHIEF FINANCIAL OFFICER,GAMMA BUSINESS COMMUNICATIONS LTD,481728,570.83,823820344
BEIS,Met Office,2023-07-13,11 SERVICES,CHIEF FINANCIAL OFFICER,GAMMA TELECOM LTD,481716,28233.07,823820344
BEIS,Met Office,2023-07-13,11 SERVICES,CHIEF FINANCIAL OFFICER,GAMMA TELECOM LTD,481716,1110.13,823820344
BEIS,Met Office,2023-07-14,11 SERVICES,SERVICES,GAMMA TELECOM LTD,481726,4490.01,823820344
BEIS,Met Office,2023-07-03,11 SERVICES,CHIEF FINANCIAL OFFICER,GB GROUP PLC,481280,103.26,539716218
BEIS,Met Office,2023-07-13,11 SERVICES,CHIEF FINANCIAL OFFICER,GB GROUP PLC,481629,114.46,539716218
BEIS,Met Office,2023-07-13,11 SERVICES,CHIEF FINANCIAL OFFICER,GB GROUP PLC,481635,571.52,539716218
BEIS,Met Office,2023-07-04,11 SERVICES,TECHNOLOGY AND CIO,GCHQ PUBLIC ACCOUNT - CESG,481345,36689.01,888813658
BEIS,Met Office,2023-07-26,10 EQUIPMENT MAINTENANCE,SERVICES,Goldisc Limited,482044,1700,861294416
BEIS,Met Office,2023-07-26,10 EQUIPMENT MAINTENANCE,SERVICES,Goldisc Limited,482044,1700,861294416
BEIS,Met Office,2023-07-26,10 EQUIPMENT MAINTENANCE,SERVICES,Goldisc Limited,482044,1700,861294416
BEIS,Met Office,2023-07-26,10 EQUIPMENT MAINTENANCE,SERVICES,Goldisc Limited,482044,1700,861294416
BEIS,Met Office,2023-07-26,10 EQUIPMENT MAINTENANCE,SERVICES,Goldisc Limited,482044,1700,861294416
BEIS,Met Office,2023-07-26,10 EQUIPMENT MAINTENANCE,SERVICES,Goldisc Limited,482044,1700,861294416
BEIS,Met Office,2023-07-26,11 SERVICES,SERVICES,Goldisc Limited,482044,200,861294416
BEIS,Met Office,2023-07-04,08 SOFTWARE LICENCES,TECHNOLOGY AND CIO,GOOGLE IRELAND LTD,481333,54.94,6388047V
BEIS,Met Office,2023-07-28,06 ACCOMMODATION,CHIEF FINANCIAL OFFICER,GOVERNMENT PROPERTY AGENCY,482148,8903.71,888 8508 47
BEIS,Met Office,2023-07-18,06 ACCOMMODATION,CHIEF FINANCIAL OFFICER,GRS BUILDING SERVICES SOUTH-WEST,481897,3972.8,-
BEIS,Met Office,2023-07-18,06 ACCOMMODATION,CHIEF FINANCIAL OFFICER,GRS BUILDING SERVICES SOUTH-WEST,481899,1560,-
BEIS,Met Office,2023-07-10,13 MISCELLANEOUS,CHIEF FINANCIAL OFFICER,HEALIX INSURANCE SERVICES LTD,481615,17631.44,-
BEIS,Met Office,2023-07-20,13 MISCELLANEOUS,CHIEF FINANCIAL OFFICER,HEALIX INTERNATIONAL,481973,6135.6,127632909
BEIS,Met Office,2023-07-20,13 MISCELLANEOUS,CHIEF FINANCIAL OFFICER,HEALIX INTERNATIONAL,482005,-6135.6,127632909
BEIS,Met Office,2023-07-20,13 MISCELLANEOUS,CHIEF FINANCIAL OFFICER,HEALIX INTERNATIONAL,482006,5113,127632909
BEIS,Met Office,2023-07-07,11 SERVICES,PEOPLE,HEALTH ASSURED LIMITED,481482,1120,927 5242 17
BEIS,Met Office,2023-07-05,10 EQUIPMENT MAINTENANCE,TECHNOLOGY AND CIO,Hewlett Packard Ltd,481449,999999,314149679
BEIS,Met Office,2023-07-05,10 EQUIPMENT MAINTENANCE,TECHNOLOGY AND CIO,Hewlett Packard Ltd,481449,455943.93,314149679
BEIS,Met Office,2023-07-05,06 ACCOMMODATION,CHIEF FINANCIAL OFFICER,HIGHLANDS & ISLANDS AIRPORTS LTD.,481352,209.88,945667772
BEIS,Met Office,2023-07-06,11 SERVICES,SERVICES,HITACHI CAPITAL VEHICLE SOLUTIONS,481309,846.84,GB 823 8248 22
BEIS,Met Office,2023-07-06,11 SERVICES,SERVICES,HITACHI CAPITAL VEHICLE SOLUTIONS,481361,-3267.36,GB 823 8248 22
BEIS,Met Office,2023-07-06,11 SERVICES,SERVICES,HITACHI CAPITAL VEHICLE SOLUTIONS,481405,13788.96,GB 823 8248 22
BEIS,Met Office,2023-07-27,PAYE AND VAT,OTHER,HMRC,482153,8295931.85,-
BEIS,Met Office,2023-07-24,11 SERVICES,PROGRAMMES,HOGAN LOVELLS INTERNATIONAL LLP,482035,27595.05,GB123371543
BEIS,Met Office,2023-07-06,06 ACCOMMODATION,PROGRAMMES,HUNTSHAM ESTATE - CROSS NO.1 SETTLEMENT,481537,5065.16,-
BEIS,Met Office,2023-07-04,08 SOFTWARE LICENCES,TECHNOLOGY AND CIO,HUT 6 SECURITY LIMITED,481400,844.8,277 2052 03
BEIS,Met Office,2023-07-05,11 SERVICES,MARKETS,"IBL SOFTWARE ENGINEERING, SPOL S.R.O.",24686,6774.98,SK2020241883
BEIS,Met Office,2023-07-05,11 SERVICES,MARKETS,"IBL SOFTWARE ENGINEERING, SPOL S.R.O.",474739,7966.63,SK2020241883
BEIS,Met Office,2023-07-05,11 SERVICES,MARKETS,"IBL SOFTWARE ENGINEERING, SPOL S.R.O.",481473,5526.96,SK2020241883
BEIS,Met Office,2023-07-04,11 SERVICES,TECHNOLOGY AND CIO,Ibm United Kingdom Ltd,481331,13440.5,107328000
BEIS,Met Office,2023-07-03,08 SOFTWARE LICENCES,TECHNOLOGY AND CIO,Ibm United Kingdom Ltd,481334,7348.2,107328000
BEIS,Met Office,2023-07-10,08 SOFTWARE LICENCES,TECHNOLOGY AND CIO,Ibm United Kingdom Ltd,481640,11052,107328000
BEIS,Met Office,2023-07-13,08 SOFTWARE LICENCES,TECHNOLOGY AND CIO,Ibm United Kingdom Ltd,481751,56634.06,107328000
BEIS,Met Office,2023-07-20,13 MISCELLANEOUS,SERVICES,IMAGETEK SYSTEMS LTD,481921,5051,GB586331424
BEIS,Met Office,2023-07-26,06 ACCOMMODATION,CHIEF FINANCIAL OFFICER,INFOGRID,480013,6582.5,293809562
BEIS,Met Office,2023-07-26,06 ACCOMMODATION,CHIEF FINANCIAL OFFICER,INFOGRID,480013,5795,293809562
BEIS,Met Office,2023-07-26,11 SERVICES,CHIEF FINANCIAL OFFICER,INFOGRID,480014,2300,293809562
BEIS,Met Office,2023-07-06,11 SERVICES,SERVICES,INMARSAT SOLUTIONS (CANADA) INC,479303,44.1,766144223
BEIS,Met Office,2023-07-04,11 SERVICES,SERVICES,INMARSAT SOLUTIONS (CANADA) INC,481337,86.4,766144223
BEIS,Met Office,2023-07-04,11 SERVICES,SERVICES,INMARSAT SOLUTIONS (CANADA) INC,481338,43.2,766144223
BEIS,Met Office,2023-07-04,11 SERVICES,MARKETS,INMARSAT SOLUTIONS (CANADA) INC,481339,1494.1,766144223
BEIS,Met Office,2023-07-04,11 SERVICES,SERVICES,INMARSAT SOLUTIONS (CANADA) INC,481340,43.2,766144223
BEIS,Met Office,2023-07-14,11 SERVICES,CHIEF FINANCIAL OFFICER,INTEROUTE COMMUNICATIONS LIMITED,480929,0,832 7071 39
BEIS,Met Office,2023-07-14,11 SERVICES,CHIEF FINANCIAL OFFICER,INTEROUTE COMMUNICATIONS LIMITED,480929,7227.8,832 7071 39
BEIS,Met Office,2023-07-20,11 SERVICES,CHIEF FINANCIAL OFFICER,INTEROUTE COMMUNICATIONS LIMITED,481918,0,832 7071 39
BEIS,Met Office,2023-07-20,11 SERVICES,CHIEF FINANCIAL OFFICER,INTEROUTE COMMUNICATIONS LIMITED,481918,7229.72,832 7071 39
BEIS,Met Office,2023-07-13,11 SERVICES,CHIEF FINANCIAL OFFICER,JERSEY TELECOM,481661,1293.72,NOTVATREG
BEIS,Met Office,2023-07-18,11 SERVICES,TECHNOLOGY AND CIO,JM & LF KENNAWAY T/A ESCOT ESTATE,481821,459.5,378891679
BEIS,Met Office,2023-07-11,11 SERVICES,PROGRAMMES,"K F LEWIN CONSULTING, LLC",11100,4823.13,-
BEIS,Met Office,2023-07-21,11 SERVICES,PROGRAMMES,LAFOSSE ASSOCIATES,482008,26517,GB 360026537
BEIS,Met Office,2023-07-03,11 SERVICES,CHIEF FINANCIAL OFFICER,LEASEDRIVE RENTAL MANAGEMENT LTD,481303,2712.19,733546040
BEIS,Met Office,2023-07-13,11 SERVICES,MARKETS,LHR BUSINESS SUPPORT CENTRE LTD,481459,19.22,927365404
BEIS,Met Office,2023-07-05,11 SERVICES,CHIEF FINANCIAL OFFICER,LICENCE BUREAU LTD,481362,122,820219467
BEIS,Met Office,2023-07-13,08 SOFTWARE LICENCES,TECHNOLOGY AND CIO,LOOP1 UK LIMITED,481705,3780,02631536
BEIS,Met Office,2023-07-21,11 SERVICES,TECHNOLOGY AND CIO,LRQA LTD,481923,12240,821176647
BEIS,Met Office,2023-07-03,13 MISCELLANEOUS,PEOPLE,LUMESSE LTD,481273,32230.95,266385668
BEIS,Met Office,2023-07-19,12 INTERNATIONAL,MARKETS,MACITECHSY SOLUTIONS,481933,740,-
BEIS,Met Office,2023-07-10,11 SERVICES,SERVICES,MADE TECH,481576,270592.86,938565184
BEIS,Met Office,2023-07-10,11 SERVICES,SERVICES,MADE TECH,481577,46075,938565184
BEIS,Met Office,2023-07-03,04 CONTRACTORS,PEOPLE,MATRIX SCM LIMITED,481252,208032.82,249 5734 68
BEIS,Met Office,2023-07-10,04 CONTRACTORS,PEOPLE,MATRIX SCM LIMITED,481520,258487.62,249 5734 68
BEIS,Met Office,2023-07-14,04 CONTRACTORS,PEOPLE,MATRIX SCM LIMITED,481754,190831.58,249 5734 68
BEIS,Met Office,2023-07-20,04 CONTRACTORS,PEOPLE,MATRIX SCM LIMITED,481994,205664.68,249 5734 68
BEIS,Met Office,2023-07-27,04 CONTRACTORS,PEOPLE,MATRIX SCM LIMITED,482116,224482.82,249 5734 68
BEIS,Met Office,2023-07-19,13 MISCELLANEOUS,SERVICES,MEIHUIZEN INTERNATIONAL,481055,462.08,4450101763
BEIS,Met Office,2023-07-10,08 SOFTWARE LICENCES,SERVICES,MERKLE ONE,481579,8315,GB478022835
BEIS,Met Office,2023-07-11,07 EQUIPMENT,SERVICES,METOCEAN TELEMATICS LTD,11121,125.05,-
BEIS,Met Office,2023-07-17,11 SERVICES,PROGRAMMES,Microsoft Ltd,481761,6296,GB724 5946 15
BEIS,Met Office,2023-07-17,11 SERVICES,PROGRAMMES,Microsoft Ltd,481763,1304,GB724 5946 15
BEIS,Met Office,2023-07-13,06 ACCOMMODATION,CHIEF FINANCIAL OFFICER,Mitie Landscapes Ltd,481714,1,GB 416 706 654
BEIS,Met Office,2023-07-13,06 ACCOMMODATION,CHIEF FINANCIAL OFFICER,Mitie Landscapes Ltd,481714,6364.01,GB 416 706 654
BEIS,Met Office,2023-07-13,06 ACCOMMODATION,CHIEF FINANCIAL OFFICER,Mitie Landscapes Ltd,481715,11234.9,GB 416 706 654
BEIS,Met Office,2023-07-13,06 ACCOMMODATION,CHIEF FINANCIAL OFFICER,Mitie Landscapes Ltd,481715,1,GB 416 706 654
BEIS,Met Office,2023-07-13,11 SERVICES,CHIEF FINANCIAL OFFICER,MITIE SECURITY LTD,481616,1311.72,416706654
BEIS,Met Office,2023-07-25,11 SERVICES,CHIEF FINANCIAL OFFICER,MITIE SECURITY LTD,482034,1247,416706654
BEIS,Met Office,2023-07-04,11 SERVICES,PEOPLE,MOMENTUM INCORPORATED,481344,13320,598958541
BEIS,Met Office,2023-07-25,11 SERVICES,PEOPLE,MOMENTUM INCORPORATED,482010,13320,598958541
BEIS,Met Office,2023-07-04,06 ACCOMMODATION,CHIEF FINANCIAL OFFICER,MORAY COUNCIL,481343,117.13,663755506
BEIS,Met Office,2023-07-10,06 ACCOMMODATION,CHIEF FINANCIAL OFFICER,MORAY COUNCIL,481592,809.82,663755506
BEIS,Met Office,2023-07-20,06 ACCOMMODATION,CHIEF FINANCIAL OFFICER,MORAY COUNCIL,481872,3112.5,663755506
BEIS,Met Office,2023-07-07,11 SERVICES,CHIEF FINANCIAL OFFICER,Morton Fraser LLP,481582,720,269129336
BEIS,Met Office,2023-07-26,11 SERVICES,CHIEF FINANCIAL OFFICER,Morton Fraser LLP,482072,87.5,269129336
BEIS,Met Office,2023-07-26,11 SERVICES,CHIEF FINANCIAL OFFICER,Morton Fraser LLP,482084,0,269129336
BEIS,Met Office,2023-07-26,11 SERVICES,CHIEF FINANCIAL OFFICER,Morton Fraser LLP,482084,167.5,269129336
BEIS,Met Office,2023-07-13,06 ACCOMMODATION,CHIEF FINANCIAL OFFICER,MOUNT CHARLES GROUP LTD,481727,496.27,517116274
BEIS,Met Office,2023-07-04,11 SERVICES,PEOPLE,NATIONAL CENTRE FOR DIVERSITY,481276,6820,894810880
BEIS,Met Office,2023-07-04,11 SERVICES,MARKETS,NATS (EN ROUTE) PLC,481069,281300,440379456004
BEIS,Met Office,2023-07-20,TRADE CREDITORS,OTHER,NATWEST COMMERCIAL CARDS DIVISION,481974,180211.31,N/A
BEIS,Met Office,2023-07-10,07 EQUIPMENT,SERVICES,Navtech Systems,481298,15,GB474449707
BEIS,Met Office,2023-07-10,07 EQUIPMENT,SERVICES,Navtech Systems,481298,9570,GB474449707
BEIS,Met Office,2023-07-26,06 ACCOMMODATION,CHIEF FINANCIAL OFFICER,NEDERMAN LTD,482066,275,108222647
BEIS,Met Office,2023-07-06,11 SERVICES,CHIEF FINANCIAL OFFICER,NEOS NETWORKS LTD,481495,1167.75,553769603
BEIS,Met Office,2023-07-11,07 EQUIPMENT,SERVICES,NEWBURY ELECTRONICS LTD,481621,-90,199294011
BEIS,Met Office,2023-07-11,07 EQUIPMENT,SERVICES,NEWBURY ELECTRONICS LTD,481621,4299.4,199294011
BEIS,Met Office,2023-07-13,07 EQUIPMENT,SERVICES,NEWBURY ELECTRONICS LTD,481711,-93.7,199294011
BEIS,Met Office,2023-07-13,07 EQUIPMENT,SERVICES,NEWBURY ELECTRONICS LTD,481711,4199.4,199294011
BEIS,Met Office,2023-07-04,13 MISCELLANEOUS,CHIEF FINANCIAL OFFICER,NORSCOTT VENDING SERVICES LTD,481354,85,751402071
BEIS,Met Office,2023-07-27,13 MISCELLANEOUS,CHIEF FINANCIAL OFFICER,NORSCOTT VENDING SERVICES LTD,482117,48.65,751402071
BEIS,Met Office,2023-07-07,06 ACCOMMODATION,MARKETS,Northern Lighthouse Board,481580,3729.54,268628908
BEIS,Met Office,2023-07-11,11 SERVICES,SERVICES,NSSL GLOBAL LTD,11114,54.93,725151948
BEIS,Met Office,2023-07-11,11 SERVICES,SERVICES,NSSL GLOBAL LTD,11115,70.63,725151948
BEIS,Met Office,2023-07-04,06 ACCOMMODATION,CHIEF FINANCIAL OFFICER,OCS Group UK Limited,481313,111439.88,GB238034379
BEIS,Met Office,2023-07-04,06 ACCOMMODATION,CHIEF FINANCIAL OFFICER,OCS Group UK Limited,481313,43149.86,GB238034379
BEIS,Met Office,2023-07-26,06 ACCOMMODATION,CHIEF FINANCIAL OFFICER,OCS Group UK Ltd,474723,54.81,238034379
BEIS,Met Office,2023-07-26,06 ACCOMMODATION,CHIEF FINANCIAL OFFICER,OCS Group UK Ltd,476907,54.81,238034379
BEIS,Met Office,2023-07-26,06 ACCOMMODATION,CHIEF FINANCIAL OFFICER,OCS Group UK Ltd,482074,-54.81,238034379
BEIS,Met Office,2023-07-26,06 ACCOMMODATION,CHIEF FINANCIAL OFFICER,OCS Group UK Ltd,482075,-54.81,238034379
BEIS,Met Office,2023-07-04,11 SERVICES,CHIEF FINANCIAL OFFICER,OPEN TEXT UK LTD,481367,100,837871308
BEIS,Met Office,2023-07-05,11 SERVICES,CHIEF FINANCIAL OFFICER,OPEN TEXT UK LTD,481403,100,837871308
BEIS,Met Office,2023-07-04,10 EQUIPMENT MAINTENANCE,TECHNOLOGY AND CIO,ORACLE CORPORATION UK LTD,481402,36631.24,391313073
BEIS,Met Office,2023-07-13,11 SERVICES,PEOPLE,PATHWAY CTM LIMITED,481663,3500,262603422
BEIS,Met Office,2023-07-04,11 SERVICES,PROGRAMMES,PAUL WATKISS ASSOCIATES LTD,481282,5250,869587641
BEIS,Met Office,2023-07-05,07 EQUIPMENT,SERVICES,PETERS & MAY GLOBAL LOGISTICS LTD,481299,75,995183276
BEIS,Met Office,2023-07-18,13 MISCELLANEOUS,SERVICES,PETERS & MAY GLOBAL LOGISTICS LTD,481451,575.25,995183276
BEIS,Met Office,2023-07-31,08 SOFTWARE LICENCES,TECHNOLOGY AND CIO,PHOENIX SOFTWARE LIMITED,481926,-134.4,755349015
BEIS,Met Office,2023-07-31,08 SOFTWARE LICENCES,TECHNOLOGY AND CIO,PHOENIX SOFTWARE LIMITED,481926,25396.8,755349015
BEIS,Met Office,2023-07-03,11 SERVICES,MARKETS,PLOUGHSHARE INNOVATIONS,481310,12000,878305296
BEIS,Met Office,2023-07-27,11 SERVICES,SCIENCE,Plymouth Marine Laboratory,481845,17202.75,927105830
BEIS,Met Office,2023-07-05,11 SERVICES,CHIEF FINANCIAL OFFICER,POSTURITE (UK) LTD,481254,31.64,583565114
BEIS,Met Office,2023-07-05,11 SERVICES,CHIEF FINANCIAL OFFICER,POSTURITE (UK) LTD,481289,40.94,583565114
BEIS,Met Office,2023-07-05,11 SERVICES,CHIEF FINANCIAL OFFICER,POSTURITE (UK) LTD,481328,727.7,583565114
BEIS,Met Office,2023-07-19,11 SERVICES,CHIEF FINANCIAL OFFICER,POSTURITE (UK) LTD,481800,42.81,583565114
BEIS,Met Office,2023-07-27,11 SERVICES,CHIEF FINANCIAL OFFICER,POSTURITE (UK) LTD,482060,141.28,583565114
BEIS,Met Office,2023-07-07,06 ACCOMMODATION,CHIEF FINANCIAL OFFICER,POWER NI ENERGY LTD,479324,912.22,617518142
BEIS,Met Office,2023-07-07,06 ACCOMMODATION,CHIEF FINANCIAL OFFICER,POWER NI ENERGY LTD,481140,-1050,617518142
BEIS,Met Office,2023-07-07,06 ACCOMMODATION,CHIEF FINANCIAL OFFICER,POWER NI ENERGY LTD,481479,728.35,617518142
BEIS,Met Office,2023-07-17,06 ACCOMMODATION,CHIEF FINANCIAL OFFICER,POWER NI ENERGY LTD,481819,113.05,617518142
BEIS,Met Office,2023-07-28,13 MISCELLANEOUS,PROGRAMMES,PRESTIGE NETWORK LTD,482090,315,529 1145 55
BEIS,Met Office,2023-07-20,PLANT AND EQUIPMENT,PROGRAMMES,PZ&W LTD,481966,8462,684 6795 68
BEIS,Met Office,2023-07-10,11 SERVICES,TECHNOLOGY AND CIO,QA LTD,480866,10050,864455303
BEIS,Met Office,2023-07-10,11 SERVICES,TECHNOLOGY AND CIO,QA LTD,481017,17280,864455303
BEIS,Met Office,2023-07-17,11 SERVICES,TECHNOLOGY AND CIO,QA LTD,481759,2520,864455303
BEIS,Met Office,2023-07-26,11 SERVICES,TECHNOLOGY AND CIO,QA LTD,481822,13200,864455303
BEIS,Met Office,2023-07-25,11 SERVICES,TECHNOLOGY AND CIO,QA LTD,481824,6450,864455303
BEIS,Met Office,2023-07-26,11 SERVICES,TECHNOLOGY AND CIO,QA LTD,482061,1500,864455303
BEIS,Met Office,2023-07-05,11 SERVICES,MARKETS,QUESTBACK UK LIMITED,481408,11431.85,GB 382 9785 37
BEIS,Met Office,2023-07-05,12 INTERNATIONAL,MARKETS,REDACTED � PERSONAL DATA,11117,2864.2,-
BEIS,Met Office,2023-07-11,12 INTERNATIONAL,MARKETS,REDACTED � PERSONAL DATA,11128,2914.24,-
BEIS,Met Office,2023-07-13,06 ACCOMMODATION,CHIEF FINANCIAL OFFICER,REDACTED � PERSONAL DATA,481710,12288.92,617358920
BEIS,Met Office,2023-07-11,11 SERVICES,PEOPLE,RESTORE RECORDS MANAGEMENT,481622,15.3,843 863011
BEIS,Met Office,2023-07-06,11 SERVICES,CHIEF FINANCIAL OFFICER,Reuters Ltd,481332,2370,397000555
BEIS,Met Office,2023-07-07,06 ACCOMMODATION,CHIEF FINANCIAL OFFICER,RIVER RIDGE,481524,165.35,176286083
BEIS,Met Office,2023-07-06,11 SERVICES,PROGRAMMES,ROWE IT LTD,481494,12750,924964394
BEIS,Met Office,2023-07-10,11 SERVICES,PROGRAMMES,ROWE IT LTD,481528,6959.13,924964394
BEIS,Met Office,2023-07-10,11 SERVICES,PROGRAMMES,ROWE IT LTD,481528,4871.39,924964394
BEIS,Met Office,2023-07-10,11 SERVICES,PROGRAMMES,ROWE IT LTD,481528,19485.55,924964394
BEIS,Met Office,2023-07-10,11 SERVICES,PROGRAMMES,ROWE IT LTD,481528,20181.45,924964394
BEIS,Met Office,2023-07-10,11 SERVICES,PROGRAMMES,ROWE IT LTD,481528,2087.74,924964394
BEIS,Met Office,2023-07-10,11 SERVICES,PROGRAMMES,ROWE IT LTD,481528,16005.99,924964394
BEIS,Met Office,2023-07-10,11 SERVICES,PROGRAMMES,ROWE IT LTD,481530,20019.84,924964394
BEIS,Met Office,2023-07-10,11 SERVICES,PROGRAMMES,ROWE IT LTD,481530,5719.95,924964394
BEIS,Met Office,2023-07-10,11 SERVICES,PROGRAMMES,ROWE IT LTD,481530,35749.69,924964394
BEIS,Met Office,2023-07-10,11 SERVICES,PROGRAMMES,ROWE IT LTD,481530,45759.58,924964394
BEIS,Met Office,2023-07-10,11 SERVICES,PROGRAMMES,ROWE IT LTD,481530,35749.69,924964394
BEIS,Met Office,2023-07-07,11 SERVICES,PROGRAMMES,ROWE IT LTD,481596,104931.25,924964394
BEIS,Met Office,2023-07-13,06 ACCOMMODATION,CHIEF FINANCIAL OFFICER,SAFESTORE LTD,481712,3430.33,722887607
BEIS,Met Office,2023-07-06,06 ACCOMMODATION,MARKETS,SCOTTISH HYDRO-ELECTRIC,481477,235,553769603
BEIS,Met Office,2023-07-05,06 ACCOMMODATION,CHIEF FINANCIAL OFFICER,SEVERN TRENT WATER LIMITED,481411,3200,-
BEIS,Met Office,2023-07-05,06 ACCOMMODATION,CHIEF FINANCIAL OFFICER,Severn Trent Water Ltd,481346,135.05,486985565
BEIS,Met Office,2023-07-19,06 ACCOMMODATION,CHIEF FINANCIAL OFFICER,Severn Trent Water Ltd,481956,221.85,486985565
BEIS,Met Office,2023-07-05,06 ACCOMMODATION,CHIEF FINANCIAL OFFICER,SHETLAND CLEANING SERVICES,481478,831.13,430028404
BEIS,Met Office,2023-07-26,11 SERVICES,PEOPLE,SKILLTEC LIMITED,478174,4750,909833105
BEIS,Met Office,2023-07-24,11 SERVICES,SERVICES,SOFTWIRE TECHNOLOGY LIMITED,481543,4200,752 1253 57
BEIS,Met Office,2023-07-04,03 STAFF COSTS T&S,MARKETS,SOLOMON & COMPANY (ST HELENA) PLC,481260,167.8,-
BEIS,Met Office,2023-07-26,06 ACCOMMODATION,CHIEF FINANCIAL OFFICER,South West Water Ltd,479894,-5395.61,236873674
BEIS,Met Office,2023-07-26,06 ACCOMMODATION,CHIEF FINANCIAL OFFICER,South West Water Ltd,479895,-642.78,236873674
BEIS,Met Office,2023-07-26,06 ACCOMMODATION,CHIEF FINANCIAL OFFICER,South West Water Ltd,479896,-642.78,236873674
BEIS,Met Office,2023-07-26,06 ACCOMMODATION,CHIEF FINANCIAL OFFICER,South West Water Ltd,479948,926.09,236873674
BEIS,Met Office,2023-07-26,06 ACCOMMODATION,CHIEF FINANCIAL OFFICER,South West Water Ltd,480221,46.76,236873674
BEIS,Met Office,2023-07-26,06 ACCOMMODATION,CHIEF FINANCIAL OFFICER,South West Water Ltd,480492,1139.62,236873674
BEIS,Met Office,2023-07-26,06 ACCOMMODATION,CHIEF FINANCIAL OFFICER,South West Water Ltd,481358,83.81,236873674
BEIS,Met Office,2023-07-26,06 ACCOMMODATION,CHIEF FINANCIAL OFFICER,South West Water Ltd,481764,3430.24,236873674
BEIS,Met Office,2023-07-26,06 ACCOMMODATION,CHIEF FINANCIAL OFFICER,South West Water Ltd,481867,935.69,236873674
BEIS,Met Office,2023-07-26,06 ACCOMMODATION,CHIEF FINANCIAL OFFICER,South West Water Ltd,482049,160.92,236873674
BEIS,Met Office,2023-07-27,11 SERVICES,TECHNOLOGY AND CIO,SPECIALIST COMPUTER CENTRES,482087,321,313651680
BEIS,Met Office,2023-07-28,11 SERVICES,TECHNOLOGY AND CIO,SPECIALIST COMPUTER CENTRES,482169,21883.63,313651680
BEIS,Met Office,2023-07-26,11 SERVICES,PEOPLE,SPOCE,480094,10135,619 8641 07
BEIS,Met Office,2023-07-10,11 SERVICES,MARKETS,SPOKE (INTERACTIVE) LTD,481491,770,840156451
BEIS,Met Office,2023-07-14,11 SERVICES,PEOPLE,STAYAHEAD TRAINING LTD,480271,1436,607958994
BEIS,Met Office,2023-07-18,FIXTURE & FITTINGS,CHIEF FINANCIAL OFFICER,Stewart Morris Partnership Ltd,481920,17286.25,687720886
BEIS,Met Office,2023-07-20,03 STAFF COSTS T&S,SERVICES,STORAGE FACTORY,481898,185,130 5237 12
BEIS,Met Office,2023-07-13,11 SERVICES,CHIEF FINANCIAL OFFICER,SURE SOUTH ATLANTIC LTD,481755,4866.81,-
BEIS,Met Office,2023-07-14,11 SERVICES,CHIEF FINANCIAL OFFICER,SURE SOUTH ATLANTIC LTD,481756,6478,-
BEIS,Met Office,2023-07-19,11 SERVICES,CHIEF FINANCIAL OFFICER,SURE SOUTH ATLANTIC LTD,481924,2230.36,NOVATREG
BEIS,Met Office,2023-07-17,11 SERVICES,CHIEF FINANCIAL OFFICER,SURE SOUTH ATLANTIC LTD (ST HELENA),481815,1413.5,30005
BEIS,Met Office,2023-07-31,11 SERVICES,MARKETS,SWANTECH LOGISTICS LTD,482146,2160,769332401
BEIS,Met Office,2023-07-31,11 SERVICES,MARKETS,SWANTECH LOGISTICS LTD,482147,1080,769332401
BEIS,Met Office,2023-07-26,11 SERVICES,CHIEF FINANCIAL OFFICER,SWISSCOM (SCHWEIZ) AG,481597,96.37,-
BEIS,Met Office,2023-07-04,11 SERVICES,TECHNOLOGY AND CIO,SYNTHESYS SYSTEMS ENGINEERS LTD,481357,4953.6,499309492
BEIS,Met Office,2023-07-10,11 SERVICES,CHIEF FINANCIAL OFFICER,TELEFONICA O2 UK LIMITED,481646,3283.38,778603785
BEIS,Met Office,2023-07-26,11 SERVICES,CHIEF FINANCIAL OFFICER,TELEFONICA O2 UK LIMITED,482062,57.4,778603785
BEIS,Met Office,2023-07-19,11 SERVICES,CHIEF FINANCIAL OFFICER,TELIA FINLAND OYJ,25127,152.2,FI14756079
BEIS,Met Office,2023-07-10,11 SERVICES,SCIENCE,THE PRIORY ROOMS MEETING & CONFERENCE CENTRE,481581,5240,860351638
BEIS,Met Office,2023-07-03,08 SOFTWARE LICENCES,CHIEF FINANCIAL OFFICER,TIMEWATCH PLC,481314,2062.5,461555250
BEIS,Met Office,2023-07-04,06 ACCOMMODATION,CHIEF FINANCIAL OFFICER,TOP RANK CLEANING SERVICES LTD,481356,950.56,-
BEIS,Met Office,2023-07-19,06 ACCOMMODATION,CHIEF FINANCIAL OFFICER,TOTAL GAS & POWER LIMITED,480290,-19466.1,689638949
BEIS,Met Office,2023-07-19,06 ACCOMMODATION,CHIEF FINANCIAL OFFICER,TOTAL GAS & POWER LIMITED,480955,931.02,689638949
BEIS,Met Office,2023-07-19,06 ACCOMMODATION,CHIEF FINANCIAL OFFICER,TOTAL GAS & POWER LIMITED,480960,14880.89,689638949
BEIS,Met Office,2023-07-19,06 ACCOMMODATION,CHIEF FINANCIAL OFFICER,TOTAL GAS & POWER LIMITED,481869,685.33,689638949
BEIS,Met Office,2023-07-19,06 ACCOMMODATION,CHIEF FINANCIAL OFFICER,TOTAL GAS & POWER LIMITED,481890,10015.93,689638949
BEIS,Met Office,2023-07-21,06 ACCOMMODATION,CHIEF FINANCIAL OFFICER,TOTAL GAS & POWER LIMITED,481961,10701.26,689638949
BEIS,Met Office,2023-07-05,12 INTERNATIONAL,MARKETS,TOTEX CORPORATION,481317,31.6,-
BEIS,Met Office,2023-07-05,12 INTERNATIONAL,MARKETS,TOTEX CORPORATION,481317,3560,-
BEIS,Met Office,2023-07-05,12 INTERNATIONAL,MARKETS,TOTEX CORPORATION,481317,1890,-
BEIS,Met Office,2023-07-05,11 SERVICES,PEOPLE,TP HEALTH LTD,481302,3339.7,883064608
BEIS,Met Office,2023-07-06,11 SERVICES,PEOPLE,TP HEALTH LTD,481532,1537,883064608
BEIS,Met Office,2023-07-31,11 SERVICES,SERVICES,TPT CONSULTANCY AND TRAINING LTD,482176,1100,682218040
BEIS,Met Office,2023-07-05,10 EQUIPMENT MAINTENANCE,SERVICES,TRESCAL,481300,1033.7,GB 115 1045 67
BEIS,Met Office,2023-07-03,10 EQUIPMENT MAINTENANCE,SERVICES,TRESCAL,481301,139,GB 115 1045 67
BEIS,Met Office,2023-07-10,06 ACCOMMODATION,CHIEF FINANCIAL OFFICER,Trinity House,481620,425,243120414
BEIS,Met Office,2023-07-10,06 ACCOMMODATION,CHIEF FINANCIAL OFFICER,Trinity House,481620,325,243120414
BEIS,Met Office,2023-07-19,07 EQUIPMENT,SERVICES,Trinity House,481963,2940,243120414
BEIS,Met Office,2023-07-05,11 SERVICES,PROGRAMMES,UCAR INCOMING PAYMENTS,11093,3291.57,-
BEIS,Met Office,2023-07-05,11 SERVICES,PROGRAMMES,UCAR INCOMING PAYMENTS,11093,643.96,-
BEIS,Met Office,2023-07-11,11 SERVICES,PROGRAMMES,UCAR INCOMING PAYMENTS,11127,6083.37,-
BEIS,Met Office,2023-07-11,11 SERVICES,PROGRAMMES,UK ATOMIC ENERGY AUTHORITY,481668,10976,GB570101391
BEIS,Met Office,2023-07-11,11 SERVICES,PROGRAMMES,UK ATOMIC ENERGY AUTHORITY,481669,12336,GB570101391
BEIS,Met Office,2023-07-06,11 SERVICES,SERVICES,UK TELEMATICS LIMITED,481450,126.5,GB763051643
BEIS,Met Office,2023-07-10,11 SERVICES,MARKETS,ULTRA ELECTRONICS LTD NUCLEAR CONTROL SYSTEMS,481493,4926.81,123340754
BEIS,Met Office,2023-07-05,11 SERVICES,PROGRAMMES,University College London,479338,92075.43,524371168
BEIS,Met Office,2023-07-20,11 SERVICES,PROGRAMMES,University College London,480954,33057.9,524371168
BEIS,Met Office,2023-07-20,11 SERVICES,PROGRAMMES,University Of Birmingham,481932,5250,729856187
BEIS,Met Office,2023-07-20,11 SERVICES,PROGRAMMES,University Of Birmingham,481975,120688,729856187
BEIS,Met Office,2023-07-06,13 MISCELLANEOUS,MARKETS,University Of Bristol,481518,3287.42,991261800
BEIS,Met Office,2023-07-17,11 SERVICES,PROGRAMMES,University Of Cambridge,481820,150000,214222124
BEIS,Met Office,2023-07-25,11 SERVICES,PROGRAMMES,University Of Durham,477969,65500,GB6755 42510
BEIS,Met Office,2023-07-25,11 SERVICES,PROGRAMMES,University Of Durham,478159,-65500,GB6755 42510
BEIS,Met Office,2023-07-10,11 SERVICES,SCIENCE,University of Edinburgh,481360,12500,592950700
BEIS,Met Office,2023-07-10,11 SERVICES,PROGRAMMES,University of Edinburgh,481648,30440.07,592950700
BEIS,Met Office,2023-07-10,11 SERVICES,SCIENCE,University Of Exeter,478534,12500,142047795
BEIS,Met Office,2023-07-10,11 SERVICES,SCIENCE,University Of Exeter,478535,12500,142047795
BEIS,Met Office,2023-07-10,11 SERVICES,PROGRAMMES,University Of Exeter,480120,149999.38,142047795
BEIS,Met Office,2023-07-10,11 SERVICES,SCIENCE,University Of Exeter,481475,12500,142047795
BEIS,Met Office,2023-07-10,11 SERVICES,SCIENCE,University Of Exeter,481476,12500,142047795
BEIS,Met Office,2023-07-10,11 SERVICES,PROGRAMMES,University Of Exeter,481595,-149999.38,142047795
BEIS,Met Office,2023-07-21,11 SERVICES,PROGRAMMES,University Of Leeds,479559,200000,613451470
BEIS,Met Office,2023-07-10,11 SERVICES,SCIENCE,University Of Leeds,480488,25000,613451470
BEIS,Met Office,2023-07-21,11 SERVICES,PROGRAMMES,University Of Leeds,481014,200000,613451470
BEIS,Met Office,2023-07-11,11 SERVICES,SCIENCE,University Of Leeds,481538,83333.25,613451470
BEIS,Met Office,2023-07-13,11 SERVICES,PROGRAMMES,University Of Leeds,481651,36851.49,613451470
BEIS,Met Office,2023-07-21,11 SERVICES,PROGRAMMES,University Of Leeds,481817,-200000,613451470
BEIS,Met Office,2023-07-21,11 SERVICES,PROGRAMMES,University Of Leeds,481818,-200000,613451470
BEIS,Met Office,2023-07-18,11 SERVICES,MARKETS,University Of Leeds,481919,12500,613451470
BEIS,Met Office,2023-07-21,03 STAFF COSTS T&S,PROGRAMMES,University Of Leeds,481999,3168.46,613451470
BEIS,Met Office,2023-07-10,11 SERVICES,SCIENCE,University Of Oxford,481359,12500,125506730
BEIS,Met Office,2023-07-26,11 SERVICES,SCIENCE,University Of Reading,481183,12500,200012659
BEIS,Met Office,2023-07-26,13 MISCELLANEOUS,SCIENCE,University Of Reading,482051,1000,200012659
BEIS,Met Office,2023-07-26,13 MISCELLANEOUS,SCIENCE,University Of Reading,482052,1000,200012659
BEIS,Met Office,2023-07-27,13 MISCELLANEOUS,SCIENCE,University Of Reading,482064,2000,200012659
BEIS,Met Office,2023-07-11,STOCK,SERVICES,VAISALA LTD,24765,0,336100011
BEIS,Met Office,2023-07-11,TRADE CREDITORS,SERVICES,VAISALA LTD,24765,23447.54,336100011
BEIS,Met Office,2023-07-11,STOCK,SERVICES,VAISALA LTD,24877,0,336100011
BEIS,Met Office,2023-07-11,TRADE CREDITORS,SERVICES,VAISALA LTD,24877,85529.3,336100011
BEIS,Met Office,2023-07-11,07 EQUIPMENT,MARKETS,VAISALA LTD,24936,432.1,336100011
BEIS,Met Office,2023-07-11,07 EQUIPMENT,MARKETS,VAISALA LTD,24936,8746.06,336100011
BEIS,Met Office,2023-07-26,STOCK,SERVICES,VAISALA LTD,25053,0,336100011
BEIS,Met Office,2023-07-26,STOCK,SERVICES,VAISALA LTD,25053,0,336100011
BEIS,Met Office,2023-07-26,STOCK,SERVICES,VAISALA LTD,25053,0,336100011
BEIS,Met Office,2023-07-26,STOCK,SERVICES,VAISALA LTD,25053,0,336100011
BEIS,Met Office,2023-07-26,STOCK,SERVICES,VAISALA LTD,25053,0,336100011
BEIS,Met Office,2023-07-26,STOCK,SERVICES,VAISALA LTD,25053,0,336100011
BEIS,Met Office,2023-07-26,STOCK,SERVICES,VAISALA LTD,25053,0,336100011
BEIS,Met Office,2023-07-26,STOCK,SERVICES,VAISALA LTD,25053,0,336100011
BEIS,Met Office,2023-07-26,STOCK,SERVICES,VAISALA LTD,25053,0,336100011
BEIS,Met Office,2023-07-26,STOCK,SERVICES,VAISALA LTD,25053,0,336100011
BEIS,Met Office,2023-07-26,STOCK,SERVICES,VAISALA LTD,25053,0,336100011
BEIS,Met Office,2023-07-26,STOCK,SERVICES,VAISALA LTD,25053,0,336100011
BEIS,Met Office,2023-07-26,STOCK,SERVICES,VAISALA LTD,25053,0,336100011
BEIS,Met Office,2023-07-26,STOCK,SERVICES,VAISALA LTD,25053,0,336100011
BEIS,Met Office,2023-07-26,STOCK,SERVICES,VAISALA LTD,25053,0,336100011
BEIS,Met Office,2023-07-26,STOCK,SERVICES,VAISALA LTD,25053,0,336100011
BEIS,Met Office,2023-07-26,STOCK,SERVICES,VAISALA LTD,25053,0,336100011
BEIS,Met Office,2023-07-26,TRADE CREDITORS,SERVICES,VAISALA LTD,25053,357.06,336100011
BEIS,Met Office,2023-07-26,TRADE CREDITORS,SERVICES,VAISALA LTD,25053,34.71,336100011
BEIS,Met Office,2023-07-26,TRADE CREDITORS,SERVICES,VAISALA LTD,25053,645.69,336100011
BEIS,Met Office,2023-07-26,TRADE CREDITORS,SERVICES,VAISALA LTD,25053,137.87,336100011
BEIS,Met Office,2023-07-26,TRADE CREDITORS,SERVICES,VAISALA LTD,25053,670.49,336100011
BEIS,Met Office,2023-07-26,TRADE CREDITORS,SERVICES,VAISALA LTD,25053,265.81,336100011
BEIS,Met Office,2023-07-26,TRADE CREDITORS,SERVICES,VAISALA LTD,25053,1274.52,336100011
BEIS,Met Office,2023-07-26,TRADE CREDITORS,SERVICES,VAISALA LTD,25053,702.22,336100011
BEIS,Met Office,2023-07-26,TRADE CREDITORS,SERVICES,VAISALA LTD,25053,172.58,336100011
BEIS,Met Office,2023-07-26,TRADE CREDITORS,SERVICES,VAISALA LTD,25053,80.34,336100011
BEIS,Met Office,2023-07-26,TRADE CREDITORS,SERVICES,VAISALA LTD,25053,100.18,336100011
BEIS,Met Office,2023-07-26,TRADE CREDITORS,SERVICES,VAISALA LTD,25053,608,336100011
BEIS,Met Office,2023-07-26,TRADE CREDITORS,SERVICES,VAISALA LTD,25053,468.15,336100011
BEIS,Met Office,2023-07-26,TRADE CREDITORS,SERVICES,VAISALA LTD,25053,219.2,336100011
BEIS,Met Office,2023-07-26,TRADE CREDITORS,SERVICES,VAISALA LTD,25053,173.57,336100011
BEIS,Met Office,2023-07-26,TRADE CREDITORS,SERVICES,VAISALA LTD,25053,1057.3,336100011
BEIS,Met Office,2023-07-26,TRADE CREDITORS,SERVICES,VAISALA LTD,25053,3240.35,336100011
BEIS,Met Office,2023-07-05,07 EQUIPMENT,MARKETS,Vaisala Oyj,24919,38587.34,FI01244162
BEIS,Met Office,2023-07-28,06 ACCOMMODATION,CHIEF FINANCIAL OFFICER,Valuation Office Agency,482149,1195,888848141
BEIS,Met Office,2023-07-28,06 ACCOMMODATION,CHIEF FINANCIAL OFFICER,Valuation Office Agency,482149,1195,888848141
BEIS,Met Office,2023-07-17,11 SERVICES,PEOPLE,VIMA CONSULTING LTD,481854,50,231412752
BEIS,Met Office,2023-07-17,11 SERVICES,PEOPLE,VIMA CONSULTING LTD,481855,7250,231412752
BEIS,Met Office,2023-07-28,11 SERVICES,SERVICES,VOLKSWAGEN GROUP LEASING,482122,160.02,BG745963883
BEIS,Met Office,2023-07-28,11 SERVICES,SERVICES,VOLKSWAGEN GROUP LEASING,482123,248.12,BG745963883
BEIS,Met Office,2023-07-28,11 SERVICES,SERVICES,VOLKSWAGEN GROUP LEASING,482124,155.15,BG745963883
BEIS,Met Office,2023-07-28,11 SERVICES,SERVICES,VOLKSWAGEN GROUP LEASING,482126,260.26,BG745963883
BEIS,Met Office,2023-07-28,11 SERVICES,SERVICES,VOLKSWAGEN GROUP LEASING,482127,134.77,BG745963883
BEIS,Met Office,2023-07-28,11 SERVICES,SERVICES,VOLKSWAGEN GROUP LEASING,482128,199.82,BG745963883
BEIS,Met Office,2023-07-28,11 SERVICES,SERVICES,VOLKSWAGEN GROUP LEASING,482129,260.65,BG745963883
BEIS,Met Office,2023-07-28,11 SERVICES,SERVICES,VOLKSWAGEN GROUP LEASING,482130,131.05,BG745963883
BEIS,Met Office,2023-07-28,11 SERVICES,SERVICES,VOLKSWAGEN GROUP LEASING,482131,134.61,BG745963883
BEIS,Met Office,2023-07-28,11 SERVICES,SERVICES,VOLKSWAGEN GROUP LEASING,482133,195.57,BG745963883
BEIS,Met Office,2023-07-28,11 SERVICES,SERVICES,VOLKSWAGEN GROUP LEASING,482134,213.27,BG745963883
BEIS,Met Office,2023-07-04,06 ACCOMMODATION,CHIEF FINANCIAL OFFICER,WALMSLEY RESIDENTIAL LETTINGS LIMITED,481355,74798.33,200012659
BEIS,Met Office,2023-07-28,11 SERVICES,CHIEF FINANCIAL OFFICER,WEBEX COMMUNICATIONS UK LTD,482121,209.92,815974302
BEIS,Met Office,2023-07-04,06 ACCOMMODATION,CHIEF FINANCIAL OFFICER,WEST LANCASHIRE BOROUGH COUNCIL,481321,138.77,-
BEIS,Met Office,2023-07-10,07 EQUIPMENT,SERVICES,WILLIAM HACKETT CHAIN PRODUCTS LIMITED,481277,-0.26,217 3054 36
BEIS,Met Office,2023-07-10,07 EQUIPMENT,SERVICES,WILLIAM HACKETT CHAIN PRODUCTS LIMITED,481277,1903.6,217 3054 36
BEIS,Met Office,2023-07-10,07 EQUIPMENT,SERVICES,WILLIAM HACKETT CHAIN PRODUCTS LIMITED,481277,301.83,217 3054 36
BEIS,Met Office,2023-07-10,07 EQUIPMENT,SERVICES,WILLIAM HACKETT CHAIN PRODUCTS LIMITED,481277,3286,217 3054 36
BEIS,Met Office,2023-07-10,07 EQUIPMENT,SERVICES,WILLIAM HACKETT CHAIN PRODUCTS LIMITED,481589,771.21,217 3054 36
BEIS,Met Office,2023-07-10,07 EQUIPMENT,SERVICES,WILLIAM HACKETT CHAIN PRODUCTS LIMITED,481589,65,217 3054 36
BEIS,Met Office,2023-07-04,06 ACCOMMODATION,CHIEF FINANCIAL OFFICER,WINGFIELD DIGBY SETTLED ESTATE,481319,2600,GB 930669020
BEIS,Met Office,2023-07-04,11 SERVICES,TECHNOLOGY AND CIO,WIREFAST LTD,481363,2247.37,749536001
BEIS,Met Office,2023-07-04,11 SERVICES,TECHNOLOGY AND CIO,WIREFAST LTD,481364,1327.03,749536001
BEIS,Met Office,2023-07-04,11 SERVICES,TECHNOLOGY AND CIO,WIREFAST LTD,481365,1763.88,749536001
BEIS,Met Office,2023-07-03,11 SERVICES,CHIEF FINANCIAL OFFICER,WOMBLE BOND DICKINSON (UK) LLP,481274,14025,GB123393627
BEIS,Met Office,2023-07-03,11 SERVICES,CHIEF FINANCIAL OFFICER,WOMBLE BOND DICKINSON (UK) LLP,481275,5684,GB123393627
BEIS,Met Office,2023-07-27,11 SERVICES,CHIEF FINANCIAL OFFICER,WOMBLE BOND DICKINSON (UK) LLP,482118,9106.6,GB123393627
BEIS,Met Office,2023-07-07,12 INTERNATIONAL,MARKETS,WORLD METEOROLOGICAL ORGANIZATION,481483,1138,-
BEIS,Met Office,2023-07-17,11 SERVICES,MARKETS,WORLDPAY (UK) LTD,481659,264.74,991280207
BEIS,Met Office,2023-07-06,11 SERVICES,MARKETS,WORLDPAY LTD,481401,34.15,991280207
BEIS,Met Office,2023-07-11,11 SERVICES,CHIEF FINANCIAL OFFICER,WT CONSULTANCY (SW) LTD,479052,1,223 4662 25
BEIS,Met Office,2023-07-11,11 SERVICES,CHIEF FINANCIAL OFFICER,WT CONSULTANCY (SW) LTD,479052,7174,223 4662 25
BEIS,Met Office,2023-07-11,11 SERVICES,CHIEF FINANCIAL OFFICER,WT CONSULTANCY (SW) LTD,480367,1,223 4662 25
BEIS,Met Office,2023-07-11,11 SERVICES,CHIEF FINANCIAL OFFICER,WT CONSULTANCY (SW) LTD,480367,3499,223 4662 25
BEIS,Met Office,2023-07-11,11 SERVICES,CHIEF FINANCIAL OFFICER,WT CONSULTANCY (SW) LTD,481349,1,223 4662 25
BEIS,Met Office,2023-07-11,11 SERVICES,CHIEF FINANCIAL OFFICER,WT CONSULTANCY (SW) LTD,481349,3499,223 4662 25
BEIS,Met Office,2023-07-06,11 SERVICES,TECHNOLOGY AND CIO,WT CONSULTANCY (SW) LTD,481350,1575,223 4662 25
BEIS,Met Office,2023-07-11,11 SERVICES,CHIEF FINANCIAL OFFICER,WT CONSULTANCY (SW) LTD,481351,10322,223 4662 25
BEIS,Met Office,2023-07-11,11 SERVICES,CHIEF FINANCIAL OFFICER,WT CONSULTANCY (SW) LTD,481351,3278,223 4662 25
BEIS,Met Office,2023-07-03,06 ACCOMMODATION,CHIEF FINANCIAL OFFICER,XEIAD,481312,1801.4,811321091
BEIS,Met Office,2023-07-18,11 SERVICES,CHIEF FINANCIAL OFFICER,XEIAD,481902,8942.1,811321091
BEIS,Met Office,2023-07-18,06 ACCOMMODATION,CHIEF FINANCIAL OFFICER,XEIAD,481903,392,811321091
BEIS,Met Office,2023-07-18,06 ACCOMMODATION,CHIEF FINANCIAL OFFICER,XEIAD,481903,675,811321091
BEIS,Met Office,2023-07-18,06 ACCOMMODATION,CHIEF FINANCIAL OFFICER,XEIAD,481903,186,811321091
BEIS,Met Office,2023-07-06,13 MISCELLANEOUS,PEOPLE,YOTI LTD,481529,22.5,GB199947617
BEIS,Met Office,2023-07-27,11 SERVICES,PEOPLE,YOTI LTD,482091,2.7,GB199947617
